Period,Quarter,"Recipient Name",City,Province,Country,Title,Language,Genre,Date,"Final Value","Original Value",Type,Purpose,Comments
2020-2021,P4,"Christal Films Productions Inc.",Montr�al,Quebec,Canada,"Au cochon qui danse",French,"Romantic Comedy",2021-01-18,42997.00,51000.00," Advance ","Development Program","Amended Contract Signed 28-Aug-2014"
2020-2021,P4,"The Inspiring Grizzlies Inc.",Toronto,Ontario,Canada,"Grizzlies (The)",English,Drama,2021-03-19,2944000.00,2844000.00," Investment ","Production Program","Amended Contract Signed 03-Jun-2016"
2020-2021,P4,"Rhombus Media Inc.",Toronto,Ontario,Canada,"The Furies",English,Thriller,2021-03-17,0.00,2144262.00," Investment ","Production Program","Amended Contract Signed 26-Mar-2020"
2020-2021,P4,"9232-2437 Qu�bec Inc.",Montr�al,Quebec,Canada,"My Salinger Year",English,Drama,2021-03-25,3200000.00,3150000.00," Investment ","Production Program","Amended Contract Signed 28-Mar-2019"
2020-2021,P4,"9361-4378 Qu�bec inc.",Montr�al,Quebec,Canada,Gen�se,French,Drama,2021-02-15,8987.00,10000.00," Contribution ","International Marketing Program","Amended Contract Signed 24-Sep-2018"
2020-2021,P4,"Level Film Inc.",Toronto,Ontario,Canada,Mouthpiece,English,Drama,2021-02-12,46202.00,49518.00," Advance ","Marketing Program","Amended Contract Signed 27-Sep-2018"
2020-2021,P4,"This Place Film Incorporated","North York",Ontario,Canada,"This Place",English,Drama,2021-03-10,211000.00,125000.00," Contribution ","Talent To Watch Program","Amended Contract Signed 09-Jan-2019"
2020-2021,P4,"2647886 Ontario Inc.",Toronto,Ontario,Canada,"40 Acres",English,Thriller,2021-02-05,0.00,125000.00," Contribution ","Talent To Watch Program","Amended Contract Signed 12-Feb-2019"
2020-2021,P4,"LTS Film Inc.",Toronto,Ontario,Canada,"Learn to Swim",English,Drama,2021-03-16,183000.00,125000.00," Contribution ","Talent To Watch Program","Amended Contract Signed 21-Dec-2018"
2020-2021,P4,"Echo Media Inc.",Montr�al,Quebec,Canada,"Hugo, Celeste et le petit peuple du Nord",French,Action/Adventure,2021-02-08,0.00,15000.00," Advance ","Development Program","Amended Contract Signed 18-Dec-2018"
2020-2021,P4,"Groupe Fair-Play Inc.",Montr�al,Quebec,Canada,"Samuel de Champlain",French,"Historical Drama",2021-03-23,0.00,15000.00," Advance ","Development Program","Amended Contract Signed 20-Nov-2018"
2020-2021,P4,"SHERPAS FILMS INC.",Montr�al,Quebec,Canada,"Viens t'en chez nous",French,Comedy,2021-03-08,0.00,15000.00," Advance ","Development Program","Amended Contract Signed 13-Mar-2019"
2020-2021,P4,"Films S�ville Inc. (Les)",Montr�al,Quebec,Canada,"Anthropocene: The Human Epoch",English,Documentary,2021-02-15,20590.00,22200.00," Contribution ","International Marketing Program","Amended Contract Signed 28-Mar-2019"
2020-2021,P4,"Films S�ville Inc. (Les)",Montr�al,Quebec,Canada,"Anthropocene: The Human Epoch",English,Documentary,2021-02-24,7145.00,9700.00," Contribution ","International Marketing Program","Amended Contract Signed 13-Mar-2019"
2020-2021,P4,"Profane Ape Productions Inc.",Toronto,Ontario,Canada,"The Swearing Jar",English,Musical,2021-03-22,1300000.00,1000000.00," Investment ","Production Program","Amended Contract Signed 27-Mar-2020"
2020-2021,P4,"Mixtape SB Productions Inc.",Toronto,Ontario,Canada,Slash/Back,English,"Science fiction/Fantasy/Tale",2021-02-17,1525000.00,1350000.00," Investment ","Production Program","Amended Contract Signed 24-Sep-2019"
2020-2021,P4,"See For Me Film Inc.",Toronto,Ontario,Canada,"See For Me",English,Thriller,2021-03-17,500000.00,350000.00," Investment ","Production Program","Amended Contract Signed 28-Jan-2020"
2020-2021,P4,"Barn 12 (Brooke & Sam) Inc.",Toronto,Ontario,Canada,"Brooke and Sam",English,Drama,2021-03-29,500000.00,325870.00," Investment ","Production Program","Amended Contract Signed 22-Jan-2020"
2020-2021,P4,"PCF Cordonni�re Le Film Inc.",Montr�al,Quebec,Canada,"La Cordonni�re",French,Drama,2021-03-09,1950000.00,1740000.00," Investment ","Production Program","Amended Contract Signed 20-Mar-2020"
2020-2021,P4,"Microscope Inc.",Montr�al,Quebec,Canada,"Les oiseaux ivres",French,Drama,2021-02-17,1660000.00,1600000.00," Investment ","Production Program","Amended Contract Signed 03-Sep-2019"
2020-2021,P4,"Les Films Opale Inc.",Montr�al,Quebec,Canada,"Vivre  100 milles � l'heure",French,Drama,2021-02-19,104819.00,115760.00," Advance ","Marketing Program","Amended Contract Signed 09-Sep-2019"
2020-2021,P4,"9401-1863 Qu�bec Inc.",Montreal,Quebec,Canada,Zipolito,French,Documentary,2021-01-11,183000.00,125000.00," Contribution ","Talent To Watch Program","Amended Contract Signed 07-Oct-2019"
2020-2021,P4,"Level Film Inc.",Toronto,Ontario,Canada,"The Rest Of Us",English,Drama,2021-02-18,68181.00,49500.00," Advance ","Marketing Program","Amended Contract Signed 29-Jan-2020"
2020-2021,P4,"SPH�RE M�DIA DISTRIBUTION INC.",Montr�al,Quebec,Canada,Fabuleuses,French,Comedy,2021-02-08,1774.00,4200.00," Contribution ","International Marketing Program","Amended Contract Signed 05-Nov-2019"
2020-2021,P4,"Fragments Distribution Inc.",Montr�al,Quebec,Canada,CHAAKAPESH,French,Documentary,2021-01-18,25916.00,30000.00," Advance ","Marketing Program","Amended Contract Signed 20-Dec-2019"
2020-2021,P4,"SPH�RE M�DIA DISTRIBUTION INC.",Montr�al,Quebec,Canada,"Mafia inc.",French,Mystery/Crime/Police,2021-02-15,1500.00,3200.00," Contribution ","International Marketing Program","Amended Contract Signed 25-Oct-2019"
2020-2021,P4,"A71 Entertainment Inc.",Toronto,Ontario,Canada,"Red Snow",English,Drama,2021-03-29,73119.00,86583.00," Advance ","Marketing Program","Amended Contract Signed 12-Mar-2020"
2020-2021,P4,"TriArt Film AB",Stockholm,,Sweden,"Matthias et Maxime",French,Drama,2021-03-30,11000.00,11000.00," Contribution ","Export Assistance Program",0
2020-2021,P4,"Pizza Guy Productions Inc.",Burnaby,"British Columbia",Canada,"I'm Just The Pizza Guy",English,Drama,2021-03-16,2750000.00,2750000.00," Investment ","Production Program",0
2020-2021,P4,"Attraction Images inc.",Montr�al,Quebec,Canada,"14 jours, 12 nuits",French,Drama,2021-02-08,1500.00,2500.00," Contribution ","International Marketing Program","Amended Contract Signed 06-Feb-2020"
2020-2021,P4,"Grizz Films Inc",Vancouver,"British Columbia",Canada,"The Grizzly Truth",English,Documentary,2021-01-04,150000.00,150000.00," Contribution ","Theatrical Documentary Program",0
2020-2021,P4,"Disappearing Insects Productions Inc.",Toronto,Ontario,Canada,"Disappearing Insects",English,Documentary,2021-03-15,500000.00,400000.00," Investment ","Theatrical Documentary Program","Amended Contract Signed 07-Oct-2020"
2020-2021,P4,"Board Game Movie Inc.",Vancouver,"British Columbia",Canada,"The Board Game Movie",English,Documentary,2021-01-15,300000.00,300000.00," Investment ","Theatrical Documentary Program",0
2020-2021,P4,"La terre vue du coeur Inc.",Montr�al,Quebec,Canada,"L'Oc�an vu du coeur",French,Documentary,2021-03-29,220000.00,220000.00," Contribution ","Theatrical Documentary Program",0
2020-2021,P4,"Lignes F inc.",Montreal,Quebec,Canada,"Lignes de fuite",French,Drama,2021-03-02,2220000.00,2220000.00," Advance ","Production Program",0
2020-2021,P4,"Films Outsiders Inc. (Les)",Verdun,Quebec,Canada,"IL PLEUVAIT DES OISEAUX",French,Drama,2021-02-11,0.00,1500.00," Contribution ","International Marketing Program","Amended Contract Signed 22-Jan-2020"
2020-2021,P4,"Farnsworth Productions Inc.",Toronto,Ontario,Canada,"Farnsworth House",English,Drama,2021-02-24,0.00,2975576.00," Investment ","Production Program","Amended Contract Signed 30-Mar-2020"
2020-2021,P4,"Attraction Images Productions XVI Inc.",Montr�al,Quebec,Canada,"L'arracheuse de temps",French,"Science fiction/Fantasy/Tale",2021-03-02,750000.00,750000.00," Advance ","Production Program",0
2020-2021,P4,"Les productions Carpediem (BT) Inc.",Outremont,Quebec,Canada,"La L�gende du Papillon",French,Comedy,2021-03-30,600000.00,600000.00," Investment ","Production Program",0
2020-2021,P4,"SPH�RE M�DIA DISTRIBUTION INC.",Montr�al,Quebec,Canada,"La d�esse des mouches � feu",French,Drama,2021-03-16,23354.00,25000.00," Contribution ","International Marketing Program","Amended Contract Signed 03-Mar-2020"
2020-2021,P4,"Films Outsiders Inc. (Les)",Verdun,Quebec,Canada,"IL PLEUVAIT DES OISEAUX",French,Drama,2021-02-23,851.00,1500.00," Contribution ","International Marketing Program","Amended Contract Signed 24-Mar-2020"
2020-2021,P4,"Delia's Gone Film Inc.",Toronto,Ontario,Canada,"Delia's Gone",English,Drama,2021-03-29,750000.00,750000.00," Investment ","Production Program",0
2020-2021,P4,"CityLights Media Inc.",Toronto,Ontario,Canada,Mariam,English,Horror,2021-01-08,150000.00,150000.00," Contribution ","Talent To Watch Program",0
2020-2021,P4,"Film Chien Blanc Inc.",Montreal,Quebec,Canada,"CHIEN BLANC",French,Drama,2021-03-18,2300000.00,2300000.00," Investment ","Production Program",0
2020-2021,P4,"Experimental Forest Films Inc.",Vancouver,"British Columbia",Canada,Inedia,English,Drama,2021-02-17,450000.00,450000.00," Investment ","Production Program",0
2020-2021,P4,"9364-4680 Qu�bec Inc.",Montr�al,Quebec,Canada,"Adam change lentement",French,Comedy,2021-02-08,150000.00,150000.00," Contribution ","Production Program",0
2020-2021,P4,"Water Horse Productions Inc.",Vancouver,"British Columbia",Canada,"Cry From the Sea",English,"Historical Drama",2021-03-30,1338000.00,1338000.00," Investment ","Production Program",0
2020-2021,P4,"Budgie Films Inc.",Toronto,Ontario,Canada,Waterloo,English,Drama,2021-03-29,4000000.00,4000000.00," Investment ","Production Program",0
2020-2021,P4,"North of Normal Productions Inc.",Vancouver,"British Columbia",Canada,"North of Normal",English,Drama,2021-02-03,2300000.00,2300000.00," Investment ","Production Program",0
2020-2021,P4,"12545951 Canada Inc.",Dewittville,Quebec,Canada,"You can Live Forever",English,Drama,2021-01-29,500000.00,500000.00," Contribution ","Production Program",0
2020-2021,P4,"9418-8943 QU�BEC INC.",Montreal,Quebec,Canada,Niagara,French,Comedy,2021-03-24,187500.00,187500.00," Contribution ","Production Program",0
2020-2021,P4,"9432-9950 Qu�bec inc",Montr�al,Quebec,Canada,"No�mie dit oui",French,Drama,2021-03-05,200000.00,200000.00," Contribution ","Production Program",0
2020-2021,P4,"Riceboy Sleeps Production Inc.",Burnaby,"British Columbia",Canada,"Riceboy Sleeps",English,Drama,2021-03-15,500000.00,450000.00," Investment ","Production Program","Amended Contract Signed 20-Nov-2020"
2020-2021,P4,"Iylond Entertainment Inc.",Okotoks,Alberta,Canada,"Hailey Rose",English,Drama,2021-02-08,450000.00,450000.00," Investment ","Production Program",0
2020-2021,P4,"2793497 Ontario Inc.",Toronto,Ontario,Canada,"Matt and Mara",English,Drama,2021-01-06,340000.00,340000.00," Investment ","Production Program",0
2020-2021,P4,"Sweetland Films Inc.","St. John's",Newfoundland/Labrador,Canada,Sweetland,English,Drama,2021-01-15,495000.00,495000.00," Investment ","Production Program",0
2020-2021,P4,"Almost Forever Productions Corp.",Calgary,Alberta,Canada,"Dark Woods",Indigenous,Horror,2021-02-17,500000.00,500000.00," Investment ","Production Program",0
2020-2021,P4,"Skeet Pictures Inc.","St. John's",Newfoundland/Labrador,Canada,Skeet,English,Drama,2021-01-19,310000.00,310000.00," Investment ","Production Program",0
2020-2021,P4,"Finality of Dusk Inc.",Winnipeg,Manitoba,Canada,"Finality of Dusk",English,Drama,2021-03-18,450000.00,450000.00," Contribution ","Production Program",0
2020-2021,P4,"Finality of Dusk Inc.",Winnipeg,Manitoba,Canada,"Finality of Dusk",English,Drama,2021-03-19,0.00,450000.00," Contribution ","Production Program","Amended Contract Signed 18-Mar-2021"
2020-2021,P4,"Finality of Dusk Inc.",Winnipeg,Manitoba,Canada,"Finality of Dusk",English,Drama,2021-03-19,450000.00,450000.00," Investment ","Production Program","Amended Contract Signed 18-Mar-2021"
2020-2021,P4,"Door Mouse Film Inc.",Sudbury,Ontario,Canada,"Door Mouse",English,Thriller,2021-02-12,500000.00,500000.00," Investment ","Production Program",0
2020-2021,P4," A Stellar Film Inc.","Atikameksheng Anishnawbek",Ontario,Canada,Stellar,English,Drama,2021-02-10,800000.00,800000.00," Investment ","Production Program",0
2020-2021,P4,"CBF Development Limited",Toronto,Ontario,Canada,Orah,English,Mystery/Crime/Police,2021-03-19,425000.00,425000.00," Investment ","Production Program",0
2020-2021,P4,"Mongrel Media Inc.",Toronto,Ontario,Canada,Easyland,English,Drama,2021-03-03,33247.00,33247.00," Advance ","Marketing Program",0
2020-2021,P4,"Easter Green Films Inc.","New Waterford","Nova Scotia",Canada,"Two Cuckolds Go Swimming",English,Drama,2021-02-05,80000.00,80000.00," Contribution ","Production Program",0
2020-2021,P4,"9377-1145 Qu�bec inc.",Montr�al,Quebec,Canada,"Le plein potentiel",French,Documentary,2021-01-06,170000.00,170000.00," Contribution ","Theatrical Documentary Program",0
2020-2021,P4,"Canadian Film in the Schools",Toronto,Ontario,Canada,"Canadian Film In The Schools & National Canadian Film Day",0,0,2021-03-16,177997.00,130997.00," Contribution ","Promotion Program","Amended Contract Signed 19-Oct-2020"
2020-2021,P4,"Hudson Festival of Canadian Film",Hudson,Quebec,Canada,"Hudson Festival of Canadian Film",0,0,2021-01-22,5000.00,5000.00," Contribution ","Promotion Program",0
2020-2021,P4,"Entertainment One Television International Ltd. dba Entertainment One Films Canada",Toronto,Ontario,Canada,"Sweetness in the Belly",English,Drama,2021-03-22,91391.00,91391.00," Advance ","Marketing Program",0
2020-2021,P4,"9417-7714 Qu�bec Inc.",Montr�al,Quebec,Canada,"Au revoir le bonheur",French,Comedy,2021-02-24,2775000.00,2550000.00," Investment ","Production Program","Amended Contract Signed 30-Oct-2020"
2020-2021,P4,"GAME THEORY FILMS INC.",Toronto,Ontario,Canada,"A Fire In The Cold Season",English,Drama,2021-03-02,30000.00,30000.00," Advance ","Marketing Program",0
2020-2021,P4,"CAVE 7 PRODUCTIONS INC.",Toronto,Ontario,Canada,"Barenaked Pandemic",English,Documentary,2021-02-08,15000.00,15000.00," Advance ","Development Program",0
2020-2021,P4,"CAVE 7 PRODUCTIONS INC.",Toronto,Ontario,Canada,"They Say Holocaust and They Mean Money: Max Stern and the Nazi Art War",English,Documentary,2021-02-08,15000.00,15000.00," Advance ","Development Program",0
2020-2021,P4,"Interstate 80 Entertainment Inc.",Calgary,Alberta,Canada,"The Wish Factory",English,Mystery/Crime/Police,2021-01-20,15000.00,15000.00," Advance ","Development Program",0
2020-2021,P4,"136469 Canada Limited o/a Sphinx Productions",Toronto,Ontario,Canada,"Bread - A Documentary",English,Documentary,2021-01-07,15000.00,15000.00," Advance ","Development Program",0
2020-2021,P4,"136469 Canada Limited o/a Sphinx Productions",Toronto,Ontario,Canada,"Let's Go to the 'Ex",English,Documentary,2021-01-07,15000.00,15000.00," Advance ","Development Program",0
2020-2021,P4,"Quiet Revolution Pictures Inc.",Ottawa,Ontario,Canada,"Empire of Butter",English,Comedy,2021-03-26,15000.00,15000.00," Advance ","Development Program",0
2020-2021,P4,"Quiet Revolution Pictures Inc.",Ottawa,Ontario,Canada,Posties,English,Comedy,2021-03-26,15000.00,15000.00," Advance ","Development Program",0
2020-2021,P4,"3 Legged Dog Films Ltd.",Toronto,Ontario,Canada,PIVOT,English,"Science fiction/Fantasy/Tale",2021-01-28,15000.00,15000.00," Advance ","Development Program",0
2020-2021,P4,"3 Legged Dog Films Ltd.",Toronto,Ontario,Canada,"ANY NIGHT",English,Thriller,2021-01-28,15000.00,15000.00," Advance ","Development Program",0
2020-2021,P4,"Transparent Film Inc.",Gibsons,"British Columbia",Canada,"Art of Change",English,Documentary,2021-01-20,15000.00,15000.00," Advance ","Development Program",0
2020-2021,P4,"Transparent Film Inc.",Gibsons,"British Columbia",Canada,Symbiosis,English,Documentary,2021-01-20,15000.00,15000.00," Advance ","Development Program",0
2020-2021,P4,"Faits Divers M�dia inc",Montr�al,Quebec,Canada,"LE HUITI�ME �TAGE, JOURS DE R�VOLTE",French,Documentary,2021-01-29,15000.00,15000.00," Advance ","Development Program",0
2020-2021,P4,"Faits Divers M�dia inc",Montr�al,Quebec,Canada,"THE SONG OF THUNDER",English,Drama,2021-01-29,15000.00,15000.00," Advance ","Development Program",0
2020-2021,P4,"Shaftesbury Development Inc.",Toronto,Ontario,Canada,"King Lear",English,"Historical Drama",2021-03-18,15000.00,15000.00," Advance ","Development Program",0
2020-2021,P4,"Lily Pictures Inc.","North Vancouver","British Columbia",Canada,"Rude Awakening",English,"Historical Drama",2021-01-25,15000.00,15000.00," Advance ","Development Program",0
2020-2021,P4,"Byron A. Martin Productions Inc.",Toronto,Ontario,Canada,"Welcome To Africa",English,Documentary,2021-01-07,15000.00,15000.00," Advance ","Development Program",0
2020-2021,P4,"Byron A. Martin Productions Inc.",Toronto,Ontario,Canada,"Wolverine Hotel",English,Thriller,2021-01-07,15000.00,15000.00," Advance ","Development Program",0
2020-2021,P4,"9164-6828 Qu�bec Inc. (d/b/a Productions Loaded Pictures)",Montreal,Quebec,Canada,"Your Too Much Benazir",English,Comedy,2021-01-12,15000.00,15000.00," Advance ","Development Program",0
2020-2021,P4,"Goodbye Productions Inc.",Vancouver,"British Columbia",Canada,"All Night Wrong",English,Comedy,2021-02-11,15000.00,15000.00," Advance ","Development Program",0
2020-2021,P4,"Goodbye Productions Inc.",Vancouver,"British Columbia",Canada,"Once Our Land",English,"Science fiction/Fantasy/Tale",2021-02-11,15000.00,15000.00," Advance ","Development Program",0
2020-2021,P4,"Resonance Films Inc.",Vancouver,"British Columbia",Canada,"DESIGNATED DRIVER",English,Comedy,2021-01-29,15000.00,15000.00," Advance ","Development Program",0
2020-2021,P4,"Resonance Films Inc.",Vancouver,"British Columbia",Canada,"Hal and Charlie, 1963",English,Drama,2021-01-29,15000.00,15000.00," Advance ","Development Program",0
2020-2021,P4,"Burns Film Ltd.",Calgary,Alberta,Canada,"Clash of The Marching Bands",English,Comedy,2021-01-20,15000.00,15000.00," Advance ","Development Program",0
2020-2021,P4,"Burns Film Ltd.",Calgary,Alberta,Canada,"The Viewing Area",English,Drama,2021-01-20,15000.00,15000.00," Advance ","Development Program",0
2020-2021,P4,"New Real Films Inc.",Toronto,Ontario,Canada,"Spencer and Jesse",English,Comedy,2021-01-14,15000.00,15000.00," Advance ","Development Program",0
2020-2021,P4,"New Real Films Inc.",Toronto,Ontario,Canada,"The Story of Polly Childs As Told By Her Enemies",English,Drama,2021-01-14,15000.00,15000.00," Advance ","Development Program",0
2020-2021,P4,"Too Many Words Inc.",Toronto,Ontario,Canada,"Nice People",English,Comedy,2021-01-15,15000.00,15000.00," Advance ","Development Program",0
2020-2021,P4,"Too Many Words Inc.",Toronto,Ontario,Canada,"When I Grow Up",English,Drama,2021-01-15,15000.00,15000.00," Advance ","Development Program",0
2020-2021,P4,"8448809 Canada inc.",Montr�al,Quebec,Canada,"Crime Blanc",French,Mystery/Crime/Police,2021-01-04,15000.00,15000.00," Advance ","Development Program",0
2020-2021,P4,"8448809 Canada inc.",Montr�al,Quebec,Canada,"Vampire Humaniste cherche suicidaire consentant",French,"Science fiction/Fantasy/Tale",2021-01-04,15000.00,15000.00," Advance ","Development Program",0
2020-2021,P4,"1459479 Alberta Inc. dba Raging River Productions",Calgary,Alberta,Canada,"Juliet's Answer",English,Comedy,2021-01-28,15000.00,15000.00," Advance ","Development Program",0
2020-2021,P4,"1459479 Alberta Inc. dba Raging River Productions",Calgary,Alberta,Canada,"Wild Goat Surf",English,Drama,2021-01-28,15000.00,15000.00," Advance ","Development Program",0
2020-2021,P4,"Vortex Comics Incorporated",Toronto,Ontario,Canada,Understudy,English,Drama,2021-03-04,15000.00,15000.00," Advance ","Development Program",0
2020-2021,P4,"WANGO Films Inc.",Toronto,Ontario,Canada,"The Corners",English,Drama,2021-01-11,15000.00,15000.00," Advance ","Development Program",0
2020-2021,P4,"WANGO Films Inc.",Toronto,Ontario,Canada,"Hello Stranger",English,Thriller,2021-01-11,15000.00,15000.00," Advance ","Development Program",0
2020-2021,P4,"Mazeking Pictures Inc.",Halifax,"Nova Scotia",Canada,Episodic,English,Thriller,2021-01-04,15000.00,15000.00," Advance ","Development Program",0
2020-2021,P4,"DCP Mystery Arts Inc.",Toronto,Ontario,Canada,"Fatal Frame (Working Title",English,"Science fiction/Fantasy/Tale",2021-01-14,15000.00,15000.00," Advance ","Development Program",0
2020-2021,P4,"Funfilm Distribution Inc.",Montr�al,Quebec,Canada,"Le Meilleur Pays du Monde",French,Drama,2021-03-10,15000.00,15000.00," Advance ","Marketing Program",0
2020-2021,P4,"Trilight Entertainment Inc.",Calgary,Alberta,Canada,Honeybee,English,Drama,2021-01-25,15000.00,15000.00," Advance ","Development Program",0
2020-2021,P4,"Trilight Entertainment Inc.",Calgary,Alberta,Canada,"Tim Horton",English,Drama,2021-01-25,15000.00,15000.00," Advance ","Development Program",0
2020-2021,P4,"Second Chance Productions Inc.",Vancouver,"British Columbia",Canada,"THE EDGE OF THE WORLD",English,"Science fiction/Fantasy/Tale",2021-01-27,15000.00,15000.00," Advance ","Development Program",0
2020-2021,P4,"1918153 Ontario Ltd.",Toronto,Ontario,Canada,"Junkie Run",English,Drama,2021-01-14,15000.00,15000.00," Advance ","Development Program",0
2020-2021,P4,"1918153 Ontario Ltd.",Toronto,Ontario,Canada,"Lost In Larabee",English,"Science fiction/Fantasy/Tale",2021-01-14,15000.00,15000.00," Advance ","Development Program",0
2020-2021,P4,"Experimental Forest Films Inc.",Vancouver,"British Columbia",Canada,"Perigean Tide",English,Drama,2021-01-22,15000.00,15000.00," Advance ","Development Program",0
2020-2021,P4,"Experimental Forest Films Inc.",Vancouver,"British Columbia",Canada,"The Expedition",English,Drama,2021-01-22,15000.00,15000.00," Advance ","Development Program",0
2020-2021,P4,"Banana-Moon Sky Films Inc.",Toronto,Ontario,Canada,"The Time We Met",English,Drama,2021-01-15,15000.00,15000.00," Advance ","Development Program",0
2020-2021,P4,"Banana-Moon Sky Films Inc.",Toronto,Ontario,Canada,"Saving Hicksville",English,"Science fiction/Fantasy/Tale",2021-01-15,15000.00,15000.00," Advance ","Development Program",0
2020-2021,P4,"Carousel Pictures Inc.",Toronto,Ontario,Canada,"Starring Phil Hartman",English,Drama,2021-01-15,15000.00,15000.00," Advance ","Development Program",0
2020-2021,P4,"Carousel Pictures Inc.",Toronto,Ontario,Canada,"Sofia's Reckoning",English,Horror,2021-01-15,15000.00,15000.00," Advance ","Development Program",0
2020-2021,P4,"Wildling Pictures Inc.",Toronto,Ontario,Canada,"Laura Dean Keeps Breaking Up with Me",English,"Romantic Comedy",2021-01-11,15000.00,15000.00," Advance ","Development Program",0
2020-2021,P4,"Wildling Pictures Inc.",Toronto,Ontario,Canada,"Paying For It",English,"Romantic Comedy",2021-01-11,15000.00,15000.00," Advance ","Development Program",0
2020-2021,P4,"Reign Films Inc.",Vancouver,"British Columbia",Canada,"Eddie and His Dad",English,Drama,2021-01-28,15000.00,15000.00," Advance ","Development Program",0
2020-2021,P4,"Reign Films Inc.",Vancouver,"British Columbia",Canada,"Hard Done By",English,Western,2021-01-28,15000.00,15000.00," Advance ","Development Program",0
2020-2021,P4,"Iylond Entertainment Inc.",Okotoks,Alberta,Canada,Collision,English,Drama,2021-02-09,15000.00,15000.00," Advance ","Development Program",0
2020-2021,P4,"Iylond Entertainment Inc.",Okotoks,Alberta,Canada,"The Plains",English,Western,2021-02-09,15000.00,15000.00," Advance ","Development Program",0
2020-2021,P4,"C&Y Cinema Ltd.",Toronto,Ontario,Canada,"God Mother",English,Horror,2021-01-14,15000.00,15000.00," Advance ","Development Program",0
2020-2021,P4,"Cineast Screen Development Limited",Halifax,"Nova Scotia",Canada,"Blood On Steel",English,Drama,2021-01-15,15000.00,15000.00," Advance ","Development Program",0
2020-2021,P4,"Cineast Screen Development Limited",Halifax,"Nova Scotia",Canada,RETREAT,English,Thriller,2021-01-15,15000.00,15000.00," Advance ","Development Program",0
2020-2021,P4,"Achromatic Media Inc.",Montr�al,Quebec,Canada,"The Hewitt Sisters",English,Drama,2021-01-21,15000.00,15000.00," Advance ","Development Program",0
2020-2021,P4,"Raven West Films Ltd.",Vancouver,"British Columbia",Canada,"RAISING CAIN",English,Drama,2021-01-14,15000.00,15000.00," Advance ","Development Program",0
2020-2021,P4,"Raven West Films Ltd.",Vancouver,"British Columbia",Canada,"THE APARTMENT",English,"Historical Drama",2021-01-14,15000.00,15000.00," Advance ","Development Program",0
2020-2021,P4,"N5 Pictures Inc.",Mississauga,Ontario,Canada,Imam,English,Drama,2021-01-15,15000.00,15000.00," Advance ","Development Program",0
2020-2021,P4,"N5 Pictures Inc.",Mississauga,Ontario,Canada,Marooned,English,"Science fiction/Fantasy/Tale",2021-01-15,15000.00,15000.00," Advance ","Development Program",0
2020-2021,P4,"Mazewalker Films Inc.","Bear River","Nova Scotia",Canada,"Wolfboy / a'q?ti-paqtismit",English,Horror,2021-01-29,18000.00,18000.00," Advance ","Development Program",0
2020-2021,P4,"Mazewalker Films Inc.","Bear River","Nova Scotia",Canada,Skite'kmujua'kik,English,"Science fiction/Fantasy/Tale",2021-01-29,18000.00,18000.00," Advance ","Development Program",0
2020-2021,P4,"G.P.A. Films Inc.",Longueuil,Quebec,Canada,"Mon soeur",French,Comedy,2021-01-26,15000.00,15000.00," Advance ","Development Program",0
2020-2021,P4,"G.P.A. Films Inc.",Longueuil,Quebec,Canada,"Seule au front",French,Drama,2021-01-26,15000.00,15000.00," Advance ","Development Program",0
2020-2021,P4,"Vroom Productions Inc.",Dewittville,Quebec,Canada,Prude,English,Drama,2021-01-12,15000.00,15000.00," Advance ","Development Program",0
2020-2021,P4,"Tiger Mister Productions Inc.",Toronto,Ontario,Canada,"Arctic Chills: Seacrets",English,Horror,2021-03-15,100000.00,100000.00," Contribution ","Talent To Watch Program",0
2020-2021,P4,"Tiger Mister Productions Inc.",Toronto,Ontario,Canada,"Arctic Chills: Reclaim",English,Horror,2021-03-15,100000.00,100000.00," Contribution ","Talent To Watch Program",0
2020-2021,P4,"HYPEPOET FILM INC.",Vancouver,"British Columbia",Canada,"The Chinatown Diner",English,Drama,2021-01-27,150000.00,150000.00," Contribution ","Talent To Watch Program",0
2020-2021,P4,"Films IDL inc.",Montr�al,Quebec,Canada,HEARTLESS,English,Drama,2021-01-11,15000.00,15000.00," Advance ","Development Program",0
2020-2021,P4,"Films IDL inc.",Montr�al,Quebec,Canada,"Avis de Temp�te",French,Drama,2021-01-11,15000.00,15000.00," Advance ","Development Program",0
2020-2021,P4,"Studio Via Le Monde Inc. (Le)",Dorval,Quebec,Canada,"Amazonie, � la rencontre des gardiens et des gardiennes de la for�t",French,Documentary,2021-01-06,15000.00,15000.00," Advance ","Development Program",0
2020-2021,P4,"775 Media Corp.",Calgary,Alberta,Canada,"The Spawning",English,"Science fiction/Fantasy/Tale",2021-03-11,15000.00,15000.00," Advance ","Development Program",0
2020-2021,P4,"Ballinran Productions Limited",Stratford,Ontario,Canada,"Theatreville: A Stage Revolution",English,Documentary,2021-02-17,15000.00,15000.00," Advance ","Development Program",0
2020-2021,P4,"Ballinran Productions Limited",Stratford,Ontario,Canada,"Clara Callan",English,Drama,2021-02-17,15000.00,15000.00," Advance ","Development Program",0
2020-2021,P4,"Play Your Gender Inc.",Dartmouth,"Nova Scotia",Canada,"Dry Clean",English,Drama,2021-01-27,15000.00,15000.00," Advance ","Development Program",0
2020-2021,P4,"Tohkapi Cinema Ltd.","North Vancouver","British Columbia",Canada,Woke,English,Drama,2021-01-29,18000.00,18000.00," Advance ","Development Program",0
2020-2021,P4,"Alyson Richards Productions Inc.",Hamilton,Ontario,Canada,ASS(t),English,Drama,2021-01-15,15000.00,15000.00," Advance ","Development Program",0
2020-2021,P4,"Alyson Richards Productions Inc.",Hamilton,Ontario,Canada,"Mail Order Bride",English,"Romantic Comedy",2021-01-15,15000.00,15000.00," Advance ","Development Program",0
2020-2021,P4,"7e Art Distribution",Laval,Quebec,Canada,"Hotel Limbo",English,Comedy,2021-01-04,25000.00,25000.00," Advance ","Marketing Program",0
2020-2021,P4,"Conciliatory Pictures Inc.",Halifax,"Nova Scotia",Canada,Splinters,English,Drama,2021-03-08,24999.00,24999.00," Advance ","Marketing Program",0
2020-2021,P4,"Wolf Spirit Films Inc.","North Vancouver","British Columbia",Canada,"Game Bone",English,Drama,2021-02-03,18000.00,18000.00," Advance ","Development Program",0
2020-2021,P4,"Idlewild Films Limited",Halifax,"Nova Scotia",Canada,"Deb's Bracelet Or Cutting Through Spiritual Materialism",English,Comedy,2021-01-12,15000.00,15000.00," Advance ","Development Program",0
2020-2021,P4,"Idlewild Films Limited",Halifax,"Nova Scotia",Canada,"Today I learned It Was You",English,Comedy,2021-01-12,15000.00,15000.00," Advance ","Development Program",0
2020-2021,P4,"Woods Entertainment Canada Inc.",Toronto,Ontario,Canada,"Simone and Thorsten",English,Drama,2021-01-11,15000.00,15000.00," Advance ","Development Program",0
2020-2021,P4,"Woods Entertainment Canada Inc.",Toronto,Ontario,Canada,"Aliens v. Robots",English,"Science fiction/Fantasy/Tale",2021-01-11,15000.00,15000.00," Advance ","Development Program",0
2020-2021,P4,"Secteur Films inc.",Montr�al,Quebec,Canada,"L'homme seul",French,Drama,2021-01-08,15000.00,15000.00," Advance ","Development Program",0
2020-2021,P4,"Victory Man Productions",Toronto,Ontario,Canada,Humane,English,Thriller,2021-03-10,15000.00,15000.00," Advance ","Development Program",0
2020-2021,P4,"Devout Productions Ltd.",Victoria,"British Columbia",Canada,"Baby Tooth",English,Drama,2021-02-01,15000.00,15000.00," Advance ","Development Program",0
2020-2021,P4,"Devout Productions Ltd.",Victoria,"British Columbia",Canada,Raya,English,Drama,2021-02-01,15000.00,15000.00," Advance ","Development Program",0
2020-2021,P4,"All Soules Films Inc.",Toronto,Ontario,Canada,"IF LOOKS COULD KILL",English,Drama,2021-01-15,15000.00,15000.00," Advance ","Development Program",0
2020-2021,P4,"All Soules Films Inc.",Toronto,Ontario,Canada,"THE WOLF AND THE CROW",English,Drama,2021-01-15,15000.00,15000.00," Advance ","Development Program",0
2020-2021,P4,"Red Cedar Films Inc.",Vancouver,"British Columbia",Canada,"The Blue Door",English,Drama,2021-02-04,15000.00,15000.00," Advance ","Development Program",0
2020-2021,P4,"Hogan Millar Media Inc.",Vancouver,"British Columbia",Canada,"Renegade: The Emily Carr Story",English,Documentary,2021-02-15,15000.00,15000.00," Advance ","Development Program",0
2020-2021,P4,"Amerique Film Inc.",Montr�al,Quebec,Canada,"Deux femmes en or",French,Comedy,2021-01-06,15000.00,15000.00," Advance ","Development Program",0
2020-2021,P4,"Loud Baby Productions Inc.",Bedford,"Nova Scotia",Canada,"Fire And Darkness",English,Documentary,2021-01-08,15000.00,15000.00," Advance ","Development Program",0
2020-2021,P4,"Artemis Films Inc.",Montr�al,Quebec,Canada,Tricheurs,French,Comedy,2021-01-11,15000.00,15000.00," Advance ","Development Program",0
2020-2021,P4,"Saaren Films Inc.",Toronto,Ontario,Canada,"Love Raffi - The Soundtrack to Our Childhood",English,Documentary,2021-02-08,15000.00,15000.00," Advance ","Development Program",0
2020-2021,P4,"Saaren Films Inc.",Toronto,Ontario,Canada,"The Syrian Dancer",English,Drama,2021-02-08,15000.00,15000.00," Advance ","Development Program",0
2020-2021,P4,"Bunk 11 Pictures Inc.",Ottawa,Ontario,Canada,"The Retreat",English,Comedy,2021-01-13,15000.00,15000.00," Advance ","Development Program",0
2020-2021,P4,"Bunk 11 Pictures Inc.",Ottawa,Ontario,Canada,"Moon Margin",English,"Science fiction/Fantasy/Tale",2021-01-13,15000.00,15000.00," Advance ","Development Program",0
2020-2021,P4,"Compass Productions Inc.",Montr�al,Quebec,Canada,"The Last Guardian",English,Action/Adventure,2021-01-07,15000.00,15000.00," Advance ","Development Program",0
2020-2021,P4,"Compass Productions Inc.",Montr�al,Quebec,Canada,Faerie,English,Drama,2021-01-07,15000.00,15000.00," Advance ","Development Program",0
2020-2021,P4,"Mosaic Entertainment Inc.","Port Moody","British Columbia",Canada,PB&J,English,Drama,2021-02-04,18000.00,18000.00," Advance ","Development Program",0
2020-2021,P4,"Babe Nation Creations Inc.",Toronto,Ontario,Canada,"Alice, Darling",English,Drama,2021-03-10,15000.00,15000.00," Advance ","Development Program",0
2020-2021,P4,"Babe Nation Creations Inc.",Toronto,Ontario,Canada,"Bonjour Tristesse",English,Drama,2021-03-10,15000.00,15000.00," Advance ","Development Program",0
2020-2021,P4,"YN Films Inc.",Toronto,Ontario,Canada,Sinners,English,Mystery/Crime/Police,2021-01-15,15000.00,15000.00," Advance ","Development Program",0
2020-2021,P4,"The Hunting Party Inc.","St. John's",Newfoundland/Labrador,Canada,"Showdown at Ashuanipi Lake",English,Western,2021-02-03,18000.00,18000.00," Advance ","Development Program",0
2020-2021,P4,"Gearshift Films Inc.",Toronto,Ontario,Canada,"Greta Follows Rivers",English,Drama,2021-01-19,15000.00,15000.00," Advance ","Development Program",0
2020-2021,P4,"Gearshift Films Inc.",Toronto,Ontario,Canada,Harbinger,English,Thriller,2021-01-19,15000.00,15000.00," Advance ","Development Program",0
2020-2021,P4,"Realm Productions & Advertising Inc.","Saint John","New Brunswick",Canada,"Beckon of the Beast",English,Thriller,2021-01-29,15000.00,15000.00," Advance ","Development Program",0
2020-2021,P4,"Paul Spence & Associates Inc.",Sainte-Marguerite-du-Lac-Masson,Quebec,Canada,"Just Giver",English,Comedy,2021-02-04,18000.00,18000.00," Advance ","Development Program",0
2020-2021,P4,"Black Dog Films Inc.",Halifax,"Nova Scotia",Canada,"YOU'RE DOING FAR WORSE THAN YOU COULD POSSIBLY IMAGINE",English,Comedy,2021-01-15,15000.00,15000.00," Advance ","Development Program",0
2020-2021,P4,"Black Dog Films Inc.",Halifax,"Nova Scotia",Canada,"REMEMBER TO BREATHE",English,Drama,2021-01-15,15000.00,15000.00," Advance ","Development Program",0
2020-2021,P4,"1976 Productions Inc.",Montr�al,Quebec,Canada,"Arr�te la com�die",French,Comedy,2021-01-04,15000.00,15000.00," Advance ","Development Program",0
2020-2021,P4,"1976 Productions Inc.",Montr�al,Quebec,Canada,Racines,French,Drama,2021-01-04,15000.00,15000.00," Advance ","Development Program",0
2020-2021,P4,"THUNDERBIRDMANFILMS Inc.",Selkirk,Manitoba,Canada,LizBo,English,Drama,2021-02-15,18000.00,18000.00," Advance ","Development Program",0
2020-2021,P4,"Transmar Films Inc.",Montr�al,Quebec,Canada,"Nous, la for�t",French,Documentary,2021-01-13,15000.00,15000.00," Advance ","Development Program",0
2020-2021,P4,"Transmar Films Inc.",Montr�al,Quebec,Canada,Rex,French,Mystery/Crime/Police,2021-01-13,15000.00,15000.00," Advance ","Development Program",0
2020-2021,P4,"Banger Films Inc.",Toronto,Ontario,Canada,"Let's Talk About Sex",English,Documentary,2021-01-15,15000.00,15000.00," Advance ","Development Program",0
2020-2021,P4,"Banger Films Inc.",Toronto,Ontario,Canada,Witch,English,Documentary,2021-01-15,15000.00,15000.00," Advance ","Development Program",0
2020-2021,P4,"Copperheart Entertainment Inc.",Toronto,Ontario,Canada,"NIGHT OF THE ZOOmbies",English,Comedy,2021-01-20,15000.00,15000.00," Advance ","Development Program",0
2020-2021,P4,"Borrowed Light Films Inc.",Toronto,Ontario,Canada,"The Letter",English,Drama,2021-01-18,15000.00,15000.00," Advance ","Development Program",0
2020-2021,P4,"12336707 Canada Inc.","Indian Island","New Brunswick",Canada,"The Green Waterways",English,Drama,2021-01-20,150000.00,150000.00," Contribution ","Talent To Watch Program",0
2020-2021,P4,"2447134 Ontario Inc.",Toronto,Ontario,Canada,"The Second Season",English,Thriller,2021-01-28,15000.00,15000.00," Advance ","Development Program",0
2020-2021,P4,"Fall Back Down Productions Inc.",Vancouver,"British Columbia",Canada,"CYCLING TO ASYLUM",English,Drama,2021-03-23,15000.00,15000.00," Advance ","Development Program",0
2020-2021,P4,"Fall Back Down Productions Inc.",Vancouver,"British Columbia",Canada,"The Estate",English,Horror,2021-03-23,15000.00,15000.00," Advance ","Development Program",0
2020-2021,P4,"Mad Samurai Productions Inc.",Richmond,"British Columbia",Canada,GREEN,English,Drama,2021-01-11,15000.00,15000.00," Advance ","Development Program",0
2020-2021,P4,"Mad Samurai Productions Inc.",Richmond,"British Columbia",Canada,"Hunting Season",English,"Science fiction/Fantasy/Tale",2021-01-11,15000.00,15000.00," Advance ","Development Program",0
2020-2021,P4,"Bunbury Films Inc.",Montr�al,Quebec,Canada,"Christmas in Chibougamau",English,Comedy,2021-01-07,15000.00,15000.00," Advance ","Development Program",0
2020-2021,P4,"Bunbury Films Inc.",Montr�al,Quebec,Canada,"Rebirth of a Nation",English,Documentary,2021-01-07,15000.00,15000.00," Advance ","Development Program",0
2020-2021,P4,"Cayenne M�dias Inc.",Wendake,Quebec,Canada,"Ma propre histoire",French,Documentary,2021-01-12,18000.00,18000.00," Advance ","Development Program",0
2020-2021,P4,"Cayenne M�dias Inc.",Wendake,Quebec,Canada,"Saisons de chasse",French,Documentary,2021-01-12,18000.00,18000.00," Advance ","Development Program",0
2020-2021,P4,"6909060 Canada Inc.",Montr�al,Quebec,Canada,"The Pink Crystal",English,Comedy,2021-01-12,15000.00,15000.00," Advance ","Development Program",0
2020-2021,P4,"6909060 Canada Inc.",Montr�al,Quebec,Canada,Consent,English,Drama,2021-01-12,15000.00,15000.00," Advance ","Development Program",0
2020-2021,P4,"Downstream Documentary Productions Inc.",Saskatoon,Saskatchewan,Canada,"Singing Back the Buffalo",English,Documentary,2021-02-09,18000.00,18000.00," Advance ","Development Program",0
2020-2021,P4,"Les Films Sanajik inc.",Longueuil,Quebec,Canada,"Hudson's Bay(bies)",English,Documentary,2021-01-07,18000.00,18000.00," Advance ","Development Program",0
2020-2021,P4,"Marie Clements Media Inc.","Galiano Island","British Columbia",Canada,"The McLean Boys",English,Western,2021-03-04,15000.00,15000.00," Advance ","Development Program",0
2020-2021,P4,"Motel Pictures Inc.",Lynden,Ontario,Canada,"White Creek File",English,Drama,2021-01-15,15000.00,15000.00," Advance ","Development Program",0
2020-2021,P4,"Solo Productions Inc.",Toronto,Ontario,Canada,"Us in 9 Months",English,Comedy,2021-02-22,15000.00,15000.00," Advance ","Development Program",0
2020-2021,P4,"Solo Productions Inc.",Toronto,Ontario,Canada,"Every Little Word (aka Armstrong's War)",English,Drama,2021-02-22,15000.00,15000.00," Advance ","Development Program",0
2020-2021,P4,"Emotion Pictures Incorporated",Halifax,"Nova Scotia",Canada,"Clara and Vanessa",English,Drama,2021-01-20,15000.00,15000.00," Advance ","Development Program",0
2020-2021,P4,"Emotion Pictures Incorporated",Halifax,"Nova Scotia",Canada,Aversion,English,Horror,2021-01-20,15000.00,15000.00," Advance ","Development Program",0
2020-2021,P4,"Midnight Lamp Films Inc.",Toronto,Ontario,Canada,"The Coal Mine",English,Documentary,2021-01-20,15000.00,15000.00," Advance ","Development Program",0
2020-2021,P4,"Midnight Lamp Films Inc.",Toronto,Ontario,Canada,Cloudless,English,Drama,2021-01-20,15000.00,15000.00," Advance ","Development Program",0
2020-2021,P4,"White Pine Pictures Inc.",Toronto,Ontario,Canada,"The Con:  Churchill and Roosevelt's Secret American War",English,Documentary,2021-01-20,15000.00,15000.00," Advance ","Development Program",0
2020-2021,P4,"White Pine Pictures Inc.",Toronto,Ontario,Canada,"Woodstock Dreaming",English,Documentary,2021-01-20,15000.00,15000.00," Advance ","Development Program",0
2020-2021,P4,"Grassfire Films Inc.","New Waterford","Nova Scotia",Canada,"Hole In The Wall",English,Horror,2021-01-12,15000.00,15000.00," Advance ","Development Program",0
2020-2021,P4,"Wreckhouse Productions Inc.","St. John's",Newfoundland/Labrador,Canada,"Party Pirate",English,Comedy,2021-01-20,15000.00,15000.00," Advance ","Development Program",0
2020-2021,P4,"Wreckhouse Productions Inc.","St. John's",Newfoundland/Labrador,Canada,"Another Beautiful Day",English,Drama,2021-01-20,15000.00,15000.00," Advance ","Development Program",0
2020-2021,P4,"White Bear Films Inc.",Winnipeg,Manitoba,Canada,"Operation Deathstalkers",English,Action/Adventure,2021-03-01,18000.00,18000.00," Advance ","Development Program",0
2020-2021,P4,"White Bear Films Inc.",Winnipeg,Manitoba,Canada,"War Cry: The Death of a Movement",English,Documentary,2021-03-01,15000.00,15000.00," Advance ","Development Program",0
2020-2021,P4,"Microclimat Films inc.",Sutton,Quebec,Canada,"Le Train",French,"Science fiction/Fantasy/Tale",2021-01-21,15000.00,15000.00," Advance ","Development Program",0
2020-2021,P4,"9219-2418 Qu�bec Inc.",Montr�al,Quebec,Canada,"B�c Quang",French,Documentary,2021-01-29,15000.00,15000.00," Advance ","Development Program",0
2020-2021,P4,"9219-2418 Qu�bec Inc.",Montr�al,Quebec,Canada,Rage,English,Drama,2021-01-29,15000.00,15000.00," Advance ","Development Program",0
2020-2021,P4,"Rezolution Pictures International Inc.",Outremont,Quebec,Canada,"Born To Be Wild",English,Documentary,2021-02-10,15000.00,15000.00," Advance ","Development Program",0
2020-2021,P4,"Rezolution Pictures International Inc.",Outremont,Quebec,Canada,"Chasing Destiny",English,Drama,2021-02-10,15000.00,15000.00," Advance ","Development Program",0
2020-2021,P4,"Free Spirit Films Inc.",Toronto,Ontario,Canada,"The Renovation",English,Drama,2021-01-19,15000.00,15000.00," Advance ","Development Program",0
2020-2021,P4,"Free Spirit Films Inc.",Toronto,Ontario,Canada,"The Woman Who Loves Giraffes",English,Drama,2021-01-19,15000.00,15000.00," Advance ","Development Program",0
2020-2021,P4,"Massey Productions Ltd.",Vancouver,"British Columbia",Canada,CROSSED,English,Thriller,2021-01-12,15000.00,15000.00," Advance ","Development Program",0
2020-2021,P4,"First Take Entertainment Ltd.",Oakville,Ontario,Canada,"Black Ice",English,Documentary,2021-01-26,36584.00,36584.00," Advance ","Development Program",0
2020-2021,P4,"First Take Entertainment Ltd.",Oakville,Ontario,Canada,Count,English,Drama,2021-01-26,22838.00,22838.00," Advance ","Development Program",0
2020-2021,P4,"julijette inc.",Winnipeg,Manitoba,Canada,Echoes,English,"Historical Drama",2021-01-12,15000.00,15000.00," Advance ","Development Program",0
2020-2021,P4,"julijette inc.",Winnipeg,Manitoba,Canada,Nightingale,English,"Science fiction/Fantasy/Tale",2021-01-12,15000.00,15000.00," Advance ","Development Program",0
2020-2021,P4,"Chronicle Pictures Incorporated",Halifax,"Nova Scotia",Canada,"Little Grey Bubbles",English,Drama,2021-01-18,15000.00,15000.00," Advance ","Development Program",0
2020-2021,P4,"Aiken Heart Films Inc.",Toronto,Ontario,Canada,Succor,English,Drama,2021-01-29,15000.00,15000.00," Advance ","Development Program",0
2020-2021,P4,"Aiken Heart Films Inc.",Toronto,Ontario,Canada,"The Dionne Years",English,Drama,2021-01-29,15000.00,15000.00," Advance ","Development Program",0
2020-2021,P4,"Flimshow Inc.",Toronto,Ontario,Canada,IDOLE,French,Comedy,2021-01-13,15000.00,15000.00," Advance ","Development Program",0
2020-2021,P4,"Flimshow Inc.",Toronto,Ontario,Canada,"The Beauty of Others",English,"Historical Drama",2021-01-13,15000.00,15000.00," Advance ","Development Program",0
2020-2021,P4,"BrancSeater Productions Inc.",Toronto,Ontario,Canada,"Foreign Soil",English,"Historical Drama",2021-03-05,15000.00,15000.00," Advance ","Development Program",0
2020-2021,P4,"BrancSeater Productions Inc.",Toronto,Ontario,Canada,"FISH BOY",English,Horror,2021-03-05,15000.00,15000.00," Advance ","Development Program",0
2020-2021,P4,"John Walker Productions Ltd.",Halifax,"Nova Scotia",Canada,"An Reiteach",English,Drama,2021-01-07,15000.00,15000.00," Advance ","Development Program",0
2020-2021,P4,"Raised by Wolves  Productions Inc.",Toronto,Ontario,Canada,Subversives,English,"Historical Drama",2021-01-21,15000.00,15000.00," Advance ","Development Program",0
2020-2021,P4,"Raised by Wolves  Productions Inc.",Toronto,Ontario,Canada,"The Rabbit Queen",English,"Historical Drama",2021-01-21,15000.00,15000.00," Advance ","Development Program",0
2020-2021,P4,"Pass Through Productions Inc.","North Vancouver","British Columbia",Canada,"Bingo Nights",English,Comedy,2021-03-03,18000.00,18000.00," Advance ","Development Program",0
2020-2021,P4,"Zapruder Films Inc.",Toronto,Ontario,Canada,"Musical Beds",English,Drama,2021-02-09,15000.00,15000.00," Advance ","Development Program",0
2020-2021,P4,"Zapruder Films Inc.",Toronto,Ontario,Canada,"The Vice Guide",English,Drama,2021-02-09,15000.00,15000.00," Advance ","Development Program",0
2020-2021,P4,"Collective Pictures Inc.",Toronto,Ontario,Canada,"Closing Dynasty",English,Drama,2021-01-29,15000.00,15000.00," Advance ","Development Program",0
2020-2021,P4,"Collective Pictures Inc.",Toronto,Ontario,Canada,Float,English,Drama,2021-01-29,15000.00,15000.00," Advance ","Development Program",0
2020-2021,P4,"Gold Star Productions Inc.","West Vancouver","British Columbia",Canada,"West of the Sun",English,Western,2021-02-04,15000.00,15000.00," Advance ","Development Program",0
2020-2021,P4,"Les Productions M�gafun inc.",Westmount,Quebec,Canada,"THE WAR ON SCIENCE",English,Documentary,2021-03-22,15000.00,15000.00," Advance ","Development Program",0
2020-2021,P4,"Les Productions M�gafun inc.",Westmount,Quebec,Canada,"LE PLAN MA�TRE",French,Documentary,2021-03-22,15000.00,15000.00," Advance ","Development Program",0
2020-2021,P4,"Nika Productions Inc.",Calgary,Alberta,Canada,Halfbreed,English,"Historical Drama",2021-02-23,18000.00,18000.00," Advance ","Development Program",0
2020-2021,P4,"Northwood Productions Inc.",Toronto,Ontario,Canada,"Medicine Walk",English,Drama,2021-03-22,22500.00,22500.00," Advance ","Development Program",0
2020-2021,P4,"Northwood Productions Inc.",Toronto,Ontario,Canada,"Up Ghost River",English,Drama,2021-03-22,22500.00,22500.00," Advance ","Development Program",0
2020-2021,P4,"Karma Film Inc.",Saskatoon,Saskatchewan,Canada,"The Truth About Monsters",English,Action/Adventure,2021-02-17,15000.00,15000.00," Advance ","Development Program",0
2020-2021,P4,"Karma Film Inc.",Saskatoon,Saskatchewan,Canada,"The Art of Dance",English,Documentary,2021-02-17,15000.00,15000.00," Advance ","Development Program",0
2020-2021,P4,"Les Productions Catbird Inc.",Montr�al,Quebec,Canada,Fireworks,English,Documentary,2021-01-12,15000.00,15000.00," Advance ","Development Program",0
2020-2021,P4,"Les Productions Catbird Inc.",Montr�al,Quebec,Canada,NoLandia,English,Documentary,2021-01-12,15000.00,15000.00," Advance ","Development Program",0
2020-2021,P4,"Circle Blue Films Inc.",Mississauga,Ontario,Canada,"Pow Wow Summer",English,Drama,2021-01-28,15000.00,15000.00," Advance ","Development Program",0
2020-2021,P4,"9393-1947 Qu�bec inc.",Montreal,Quebec,Canada,"Les Anglos (working title)",English,Comedy,2021-01-13,15000.00,15000.00," Advance ","Development Program",0
2020-2021,P4,"9393-1947 Qu�bec inc.",Montreal,Quebec,Canada,"Mists of Time (working title)",English,Horror,2021-01-13,15000.00,15000.00," Advance ","Development Program",0
2020-2021,P4,"Viddywell Films Inc.",Toronto,Ontario,Canada,"Hike Surf F*ck",English,Drama,2021-02-12,15000.00,15000.00," Advance ","Development Program",0
2020-2021,P4,"Viddywell Films Inc.",Toronto,Ontario,Canada,"You Go Your Way, I'll Go Your Way Too",English,Drama,2021-02-12,15000.00,15000.00," Advance ","Development Program",0
2020-2021,P4,"Prowler Pictures Inc.",Vancouver,"British Columbia",Canada,"Post Partum",English,Horror,2021-02-09,15000.00,15000.00," Advance ","Development Program",0
2020-2021,P4,"Prowler Pictures Inc.",Vancouver,"British Columbia",Canada,"Shining City",English,"Science fiction/Fantasy/Tale",2021-02-09,15000.00,15000.00," Advance ","Development Program",0
2020-2021,P4,"Sienna Films Inc.",Toronto,Ontario,Canada,"Another Country",English,Drama,2021-03-26,15000.00,15000.00," Advance ","Development Program",0
2020-2021,P4,"Sienna Films Inc.",Toronto,Ontario,Canada,Inheritance,English,Horror,2021-03-26,15000.00,15000.00," Advance ","Development Program",0
2020-2021,P4,"Marina Cordoni Entertainment Inc.",Toronto,Ontario,Canada,"Going Home Again",English,Drama,2021-01-26,15000.00,15000.00," Advance ","Development Program",0
2020-2021,P4,"4Head Films Inc.",Winnipeg,Manitoba,Canada,"Loops & Arrows",English,Drama,2021-01-18,15000.00,15000.00," Advance ","Development Program",0
2020-2021,P4,"4Head Films Inc.",Winnipeg,Manitoba,Canada,Bouteille,French,Drama,2021-01-18,15000.00,15000.00," Advance ","Development Program",0
2020-2021,P4,"Corvid Pictures Inc.",Toronto,Ontario,Canada,"Black Circle",English,Horror,2021-01-19,15000.00,15000.00," Advance ","Development Program",0
2020-2021,P4,"Six Island Productions Inc.",Toronto,Ontario,Canada,"Year of the Woman",English,Comedy,2021-01-25,15000.00,15000.00," Advance ","Development Program",0
2020-2021,P4,"Six Island Productions Inc.",Toronto,Ontario,Canada,"The Hag",English,Horror,2021-01-25,15000.00,15000.00," Advance ","Development Program",0
2020-2021,P4,"Scythia Films Inc.",Toronto,Ontario,Canada,"The Eden Express",English,Drama,2021-01-07,15000.00,15000.00," Advance ","Development Program",0
2020-2021,P4,"Eagle Vision Inc.",Winnipeg,Manitoba,Canada,"Satan's Brew",English,Comedy,2021-01-19,15000.00,15000.00," Advance ","Development Program",0
2020-2021,P4,"Eagle Vision Inc.",Winnipeg,Manitoba,Canada,"My Only Sunshine",English,Drama,2021-01-19,15000.00,15000.00," Advance ","Development Program",0
2020-2021,P4,"2429014 Ontario Inc.",Toronto,Ontario,Canada,"Acid Rain Burns My Bass",English,Documentary,2021-01-14,15000.00,15000.00," Advance ","Development Program",0
2020-2021,P4,"First Generation Films Inc.",Toronto,Ontario,Canada,Bridge,English,Drama,2021-03-05,15000.00,15000.00," Advance ","Development Program",0
2020-2021,P4,"First Generation Films Inc.",Toronto,Ontario,Canada,"Hawksbill Station",English,"Science fiction/Fantasy/Tale",2021-03-05,35000.00,35000.00," Advance ","Development Program",0
2020-2021,P4,"Transcendence Film Ltd.",Cochrane,Alberta,Canada,"The Burial",English,Thriller,2021-02-09,15000.00,15000.00," Advance ","Development Program",0
2020-2021,P4,"9219-3010 Qu�bec Inc.",Montr�al,Quebec,Canada,Parand,French,Drama,2021-01-12,15000.00,15000.00," Advance ","Development Program",0
2020-2021,P4,"9219-3010 Qu�bec Inc.",Montr�al,Quebec,Canada,"HOMO Sapienne",Indigenous,Drama,2021-01-12,15000.00,15000.00," Advance ","Development Program",0
2020-2021,P4,"Eye Steel Film Inc.",Montr�al,Quebec,Canada,"Rediscovering Reality",English,Documentary,2021-01-27,15000.00,15000.00," Advance ","Development Program",0
2020-2021,P4,"Eye Steel Film Inc.",Montr�al,Quebec,Canada,Ultra,English,Documentary,2021-01-27,15000.00,15000.00," Advance ","Development Program",0
2020-2021,P4,"Chaos A Film Company Inc.",Calgary,Alberta,Canada,"Berlin Blues",English,Comedy,2021-02-01,15000.00,15000.00," Advance ","Development Program",0
2020-2021,P4,"Chaos A Film Company Inc.",Calgary,Alberta,Canada,Papwa,English,Drama,2021-02-01,15000.00,15000.00," Advance ","Development Program",0
2020-2021,P4,"Crawlspace Films, Inc.","St. John's",Newfoundland/Labrador,Canada,"Rubber Whales",English,Comedy,2021-01-04,15000.00,15000.00," Advance ","Development Program",0
2020-2021,P4,"Crawlspace Films, Inc.","St. John's",Newfoundland/Labrador,Canada,"Tunnel Vision",English,Drama,2021-01-04,15000.00,15000.00," Advance ","Development Program",0
2020-2021,P4,"Les Films de La Mancha Inc.",Montr�al,Quebec,Canada,"ONE FLESH",English,Horror,2021-01-14,15000.00,15000.00," Advance ","Development Program",0
2020-2021,P4,"Les Films de La Mancha Inc.",Montr�al,Quebec,Canada,"DARIUS LE GRAND",French,Thriller,2021-01-14,15000.00,15000.00," Advance ","Development Program",0
2020-2021,P4,"9360-1953 Qu�bec inc.",Montreal,Quebec,Canada,"Look Before You Leap",English,Documentary,2021-01-06,15000.00,15000.00," Advance ","Development Program",0
2020-2021,P4,"9360-1953 Qu�bec inc.",Montreal,Quebec,Canada,Outpost,English,"Science fiction/Fantasy/Tale",2021-01-06,15000.00,15000.00," Advance ","Development Program",0
2020-2021,P4,"Fathom Film Group Ltd.",Toronto,Ontario,Canada,"Smoke & Gifts",English,Documentary,2021-02-02,15000.00,15000.00," Advance ","Development Program",0
2020-2021,P4,"Fathom Film Group Ltd.",Toronto,Ontario,Canada,"The Future is Sh*t",English,Documentary,2021-02-02,15000.00,15000.00," Advance ","Development Program",0
2020-2021,P4,"Bloom Films 1998 Inc.",Ste-Anne-des-Lacs,Quebec,Canada,"Burning Men (aka Route 66)",English,Action/Adventure,2021-01-15,15000.00,15000.00," Advance ","Development Program",0
2020-2021,P4,"Bloom Films 1998 Inc.",Ste-Anne-des-Lacs,Quebec,Canada,"Kill Me Now",English,Drama,2021-01-15,15000.00,15000.00," Advance ","Development Program",0
2020-2021,P4,"Films du Rapide-Blanc Inc.",Montr�al,Quebec,Canada,L'IMPERMANENCE,French,Documentary,2021-02-04,15000.00,15000.00," Advance ","Development Program",0
2020-2021,P4,"Films du Rapide-Blanc Inc.",Montr�al,Quebec,Canada,Funambule,French,Drama,2021-02-04,15000.00,15000.00," Advance ","Development Program",0
2020-2021,P4,"Frantic Films Corporation",Winnipeg,Manitoba,Canada,"Not Dead Yet",English,Drama,2021-02-24,15000.00,15000.00," Advance ","Development Program",0
2020-2021,P4,"MacLaren Productions Inc.",Toronto,Ontario,Canada,"The Perdu Woman",English,Comedy,2021-01-25,15000.00,15000.00," Advance ","Development Program",0
2020-2021,P4,"Films Reflektor Inc.",Montr�al,Quebec,Canada,"All my life",English,Documentary,2021-02-18,15000.00,15000.00," Advance ","Development Program",0
2020-2021,P4,"Endgame Films Corporation",Toronto,Ontario,Canada,Manuela,English,Drama,2021-01-29,15000.00,15000.00," Advance ","Development Program",0
2020-2021,P4,"Endgame Films Corporation",Toronto,Ontario,Canada,"White River",English,Drama,2021-01-29,15000.00,15000.00," Advance ","Development Program",0
2020-2021,P4,"1371097 Ontario Ltd. O/A CaribbeanTales",Toronto,Ontario,Canada,"In The Black",English,Drama,2021-03-12,15000.00,15000.00," Advance ","Development Program",0
2020-2021,P4,"1371097 Ontario Ltd. O/A CaribbeanTales",Toronto,Ontario,Canada,Siparia,English,"Science fiction/Fantasy/Tale",2021-03-12,15000.00,15000.00," Advance ","Development Program",0
2020-2021,P4,"Clique Pictures Inc.",Toronto,Ontario,Canada,"Modern Whore",English,Drama,2021-01-29,15000.00,15000.00," Advance ","Development Program",0
2020-2021,P4,"Clique Pictures Inc.",Toronto,Ontario,Canada,"Places in Between",English,Drama,2021-01-29,15000.00,15000.00," Advance ","Development Program",0
2020-2021,P4,"Boomerang Films Inc.",Toronto,Ontario,Canada,"Sound Within",English,"Historical Drama",2021-02-16,15000.00,15000.00," Advance ","Development Program",0
2020-2021,P4,"Boomerang Films Inc.",Toronto,Ontario,Canada,"Happier Ever After",English,"Romantic Comedy",2021-02-16,15000.00,15000.00," Advance ","Development Program",0
2020-2021,P4,"Violator Films Inc.",Vancouver,"British Columbia",Canada,"Bad Bitches",English,Drama,2021-01-14,15000.00,15000.00," Advance ","Development Program",0
2020-2021,P4,"Violator Films Inc.",Vancouver,"British Columbia",Canada,"Kill Me",English,Drama,2021-01-14,15000.00,15000.00," Advance ","Development Program",0
2020-2021,P4,"Full Plate Productions Incorporated",Hamilton,Ontario,Canada,"A Bad Day for Voodoo",English,Comedy,2021-01-29,15000.00,15000.00," Advance ","Development Program",0
2020-2021,P4,"Full Plate Productions Incorporated",Hamilton,Ontario,Canada,APEX,English,Thriller,2021-01-29,15000.00,15000.00," Advance ","Development Program",0
2020-2021,P4,"Hawkeye Pictures Inc.",Toronto,Ontario,Canada,"The Banquet",English,"Romantic Comedy",2021-01-15,15000.00,15000.00," Advance ","Development Program",0
2020-2021,P4,"Hawkeye Pictures Inc.",Toronto,Ontario,Canada,"The Honey Farm",English,Thriller,2021-01-15,15000.00,15000.00," Advance ","Development Program",0
2020-2021,P4,"Less Bland Productions Inc.",Saanichton,"British Columbia",Canada,"Tattie Bogles",English,Comedy,2021-01-28,15000.00,15000.00," Advance ","Development Program",0
2020-2021,P4,"Less Bland Productions Inc.",Saanichton,"British Columbia",Canada,"The Reclamation of Steve Joe",English,Comedy,2021-01-28,15000.00,15000.00," Advance ","Development Program",0
2020-2021,P4,"Elevation Pictures Productions Corp.",Toronto,Ontario,Canada,Crescendo,English,Thriller,2021-03-29,15000.00,15000.00," Advance ","Development Program",0
2020-2021,P4,"Les Films de L'Hydre Inc.",Montr�al,Quebec,Canada,"Le mensonge",French,Musical,2021-01-12,15000.00,15000.00," Advance ","Development Program",0
2020-2021,P4,"Les Films de L'Hydre Inc.",Montr�al,Quebec,Canada,"Play by Play",English,"Romantic Comedy",2021-01-12,15000.00,15000.00," Advance ","Development Program",0
2020-2021,P4,"2808641 Ontario Inc.",Toronto,Ontario,Canada,Unfamilied,English,Comedy,2021-03-15,15000.00,15000.00," Advance ","Development Program",0
2020-2021,P4,"Howie Role Productions Inc.",Vancouver,"British Columbia",Canada,"Project Ivan",English,"Science fiction/Fantasy/Tale",2021-01-12,15000.00,15000.00," Advance ","Development Program",0
2020-2021,P4,"North Country Cinema Productions Inc.",Calgary,Alberta,Canada,"Golf & Country",English,Thriller,2021-02-03,15000.00,15000.00," Advance ","Development Program",0
2020-2021,P4,"Principia Productions Ltd.","West Vancouver","British Columbia",Canada,Nadia!,English,Drama,2021-02-04,15000.00,15000.00," Advance ","Development Program",0
2020-2021,P4,"Principia Productions Ltd.","West Vancouver","British Columbia",Canada,"The Tenant",English,"Romantic Comedy",2021-02-04,15000.00,15000.00," Advance ","Development Program",0
2020-2021,P4,"Neophyte Productions Inc.",Toronto,Ontario,Canada,"Moon Sign",English,Horror,2021-01-19,15000.00,15000.00," Advance ","Development Program",0
2020-2021,P4,"Neophyte Productions Inc.",Toronto,Ontario,Canada,"How & When",English,Musical,2021-01-19,15000.00,15000.00," Advance ","Development Program",0
2020-2021,P4,"696276 NB Inc.",Fredericton,"New Brunswick",Canada,"The Last Tree",English,Drama,2021-01-25,15000.00,15000.00," Advance ","Development Program",0
2020-2021,P4,"696276 NB Inc.",Fredericton,"New Brunswick",Canada,"The Wonderful Future",English,"Science fiction/Fantasy/Tale",2021-01-25,15000.00,15000.00," Advance ","Development Program",0
2020-2021,P4,"Insight Productions Ltd.",Toronto,Ontario,Canada,"Whispers and Lies",English,Thriller,2021-03-12,15000.00,15000.00," Advance ","Development Program",0
2020-2021,P4,"Optic Nerve Films Inc.",Vancouver,"British Columbia",Canada,"The Killer Whale Who Changed the World",English,Drama,2021-02-12,15000.00,15000.00," Advance ","Development Program",0
2020-2021,P4,"Tabula Dada Productions Inc.",Vancouver,"British Columbia",Canada,"Jekyll's Ransom",English,Drama,2021-02-15,15000.00,15000.00," Advance ","Development Program",0
2020-2021,P4,"Tabula Dada Productions Inc.",Vancouver,"British Columbia",Canada,"Fear the Night",English,"Science fiction/Fantasy/Tale",2021-02-15,15000.00,15000.00," Advance ","Development Program",0
2020-2021,P4,"Hunkpapa Films Inc.",Vancouver,"British Columbia",Canada,"Sally and the Stinky Pea",English,Drama,2021-02-09,18000.00,18000.00," Advance ","Development Program",0
2020-2021,P4,"Visceral Village Productions Inc.",Vancouver,"British Columbia",Canada,"Don't Look Back In Anger",English,Comedy,2021-02-03,18000.00,18000.00," Advance ","Development Program",0
2020-2021,P4,"Opus 59 Films Inc.",Vancouver,"British Columbia",Canada,"King Arthur's Night",English,Documentary,2021-01-14,15000.00,15000.00," Advance ","Development Program",0
2020-2021,P4,"Opus 59 Films Inc.",Vancouver,"British Columbia",Canada,"Stanley Park",English,Drama,2021-01-14,15000.00,15000.00," Advance ","Development Program",0
2020-2021,P4,"Inner City Films Development Inc.",Toronto,Ontario,Canada,"Boy Wonder",English,Drama,2021-01-28,15000.00,15000.00," Advance ","Development Program",0
2020-2021,P4,"Inner City Films Development Inc.",Toronto,Ontario,Canada,Neutrino,English,"Science fiction/Fantasy/Tale",2021-01-28,15000.00,15000.00," Advance ","Development Program",0
2020-2021,P4,"Jobro Productions Inc.",Toronto,Ontario,Canada,"Plague Angel",English,Drama,2021-01-29,15000.00,15000.00," Advance ","Development Program",0
2020-2021,P4,"Jobro Productions Inc.",Toronto,Ontario,Canada,Telephone,English,"Science fiction/Fantasy/Tale",2021-01-29,15000.00,15000.00," Advance ","Development Program",0
2020-2021,P4,"Hoggwild Films Inc.",Victoria,"British Columbia",Canada,"Burning Yourself, and Other Essential Skills",English,Drama,2021-02-09,15000.00,15000.00," Advance ","Development Program",0
2020-2021,P4,"Hoggwild Films Inc.",Victoria,"British Columbia",Canada,"Untitled Secondary Infertility Dramedy",English,Drama,2021-02-09,15000.00,15000.00," Advance ","Development Program",0
2020-2021,P4,"9323-2007 Qu�bec Inc.",Montr�al,Quebec,Canada,"Querelle de Roberval",French,Drama,2021-01-20,15000.00,15000.00," Advance ","Development Program",0
2020-2021,P4,"9323-2007 Qu�bec Inc.",Montr�al,Quebec,Canada,"Solstice de l'utopie",French,Drama,2021-01-20,15000.00,15000.00," Advance ","Development Program",0
2020-2021,P4,"2638107 Ontario Inc.",Brantford,Ontario,Canada,"CAFE DAUGHTER",English,Drama,2021-02-10,18000.00,18000.00," Advance ","Development Program",0
2020-2021,P4,"Prairie Dog Film & Television (2004) Ltd.",Calgary,Alberta,Canada,"Blackstone - The Beginning",English,Drama,2021-03-01,18000.00,18000.00," Advance ","Development Program",0
2020-2021,P4,"Prairie Dog Film & Television (2004) Ltd.",Calgary,Alberta,Canada,Stolen,English,Drama,2021-03-01,18000.00,18000.00," Advance ","Development Program",0
2020-2021,P4,"Urban Rez Productions Inc.",Skidegate,"British Columbia",Canada,"THE GENTLE WAR",English,Drama,2021-02-17,18000.00,18000.00," Advance ","Development Program",0
2020-2021,P4,"Couzin Films Inc.",Montr�al,Quebec,Canada,"Under Cover Girls",English,Action/Adventure,2021-01-22,15000.00,15000.00," Advance ","Development Program",0
2020-2021,P4,"Couzin Films Inc.",Montr�al,Quebec,Canada,"La fonte des glaces",French,Drama,2021-01-22,15000.00,15000.00," Advance ","Development Program",0
2020-2021,P4,"Blac Op Films Incorporated",Dartmouth,"Nova Scotia",Canada,Geema,English,Drama,2021-03-17,15000.00,15000.00," Advance ","Development Program",0
2020-2021,P4,"Blac Op Films Incorporated",Dartmouth,"Nova Scotia",Canada,"Mink Country",English,Drama,2021-03-17,15000.00,15000.00," Advance ","Development Program",0
2020-2021,P4,"2053152 Ontario Inc. dba LA Coles Fine Art Films",Woodbridge,Ontario,Canada,"Love in Vein",English,Drama,2021-01-27,15000.00,15000.00," Advance ","Development Program",0
2020-2021,P4,"2053152 Ontario Inc. dba LA Coles Fine Art Films",Woodbridge,Ontario,Canada,"Soiled Dove",English,Western,2021-01-27,15000.00,15000.00," Advance ","Development Program",0
2020-2021,P4,"Long Haul Big Hearts Productions Inc.",Ajax,Ontario,Canada,"The June Effect (aka Poison in Paradise)",English,Documentary,2021-02-19,15000.00,15000.00," Advance ","Development Program",0
2020-2021,P4,"Long Haul Big Hearts Productions Inc.",Ajax,Ontario,Canada,"The Land, The Sea, The People",English,Documentary,2021-02-19,15000.00,15000.00," Advance ","Development Program",0
2020-2021,P4,"Productions des Ann�es Lumi�res Inc.",Qu�bec,Quebec,Canada,"L'apocalypse de Rosalie",French,"Science fiction/Fantasy/Tale",2021-01-15,15000.00,15000.00," Advance ","Development Program",0
2020-2021,P4,"White Eagle Entertainment Inc.","East York",Ontario,Canada,"A Fair Fight",English,Documentary,2021-02-09,15000.00,15000.00," Advance ","Development Program",0
2020-2021,P4,"White Eagle Entertainment Inc.","East York",Ontario,Canada,"Sullivan Street",English,Drama,2021-02-09,15000.00,15000.00," Advance ","Development Program",0
2020-2021,P4,"Shadow Shows Incorporated",Toronto,Ontario,Canada,Beausoleil,English,"Historical Drama",2021-02-01,15000.00,15000.00," Advance ","Development Program",0
2020-2021,P4,"Shadow Shows Incorporated",Toronto,Ontario,Canada,"Sallie Chisum Loves Pat Garrett and Billy The Kid",English,Western,2021-02-01,15000.00,15000.00," Advance ","Development Program",0
2020-2021,P4,"V�locit� International inc.",Qu�bec,Quebec,Canada,Affranchies,French,Documentary,2021-02-16,15000.00,15000.00," Advance ","Development Program",0
2020-2021,P4,"Broken Mirror Films Ltd.",Victoria,"British Columbia",Canada,"Burden & Blood",English,Horror,2021-01-18,15000.00,15000.00," Advance ","Development Program",0
2020-2021,P4,"Broken Mirror Films Ltd.",Victoria,"British Columbia",Canada,Pesta,English,Horror,2021-01-18,15000.00,15000.00," Advance ","Development Program",0
2020-2021,P4,"Boyer Thomas Productions Inc.",Winnipeg,Manitoba,Canada,"Shots You Don't Take",English,Drama,2021-02-18,18000.00,18000.00," Advance ","Development Program",0
2020-2021,P4,"Fanning Feathers Productions Ltd.",Regina,Saskatchewan,Canada,"A Life Less Empty",English,Drama,2021-02-15,18000.00,18000.00," Advance ","Development Program",0
2020-2021,P4,"Fanning Feathers Productions Ltd.",Regina,Saskatchewan,Canada,Nina,English,Drama,2021-02-15,18000.00,18000.00," Advance ","Development Program",0
2020-2021,P4,"Stone Cold Productions Limited",Dartmouth,"Nova Scotia",Canada,"Captain Beaver Tail and the Northern Defenders",English,Action/Adventure,2021-02-15,18000.00,18000.00," Advance ","Development Program",0
2020-2021,P4,"Stone Cold Productions Limited",Dartmouth,"Nova Scotia",Canada,"Hard Core",English,Comedy,2021-02-15,18000.00,18000.00," Advance ","Development Program",0
2020-2021,P4,"MK2 Mile End Inc.",Montr�al,Quebec,Canada,"Maria Chapdelaine",French,"Historical Drama",2021-01-04,643838.00,643838.00," Advance ","Marketing Program",0
2020-2021,P4,"Hungry Eyes Media Inc.",Toronto,Ontario,Canada,"Buckingham Palace",English,"Historical Drama",2021-03-03,15000.00,15000.00," Advance ","Development Program",0
2020-2021,P4,"Hungry Eyes Media Inc.",Toronto,Ontario,Canada,"40 Acres",English,Thriller,2021-03-03,15000.00,15000.00," Advance ","Development Program",0
2020-2021,P4,"Assini Productions Inc.",Toronto,Ontario,Canada,Bloodlines,English,Drama,2021-02-17,18000.00,18000.00," Advance ","Development Program",0
2020-2021,P4,"Big Soul Productions Inc.",Toronto,Ontario,Canada,Soucouyant,English,Drama,2021-02-01,15000.00,15000.00," Advance ","Development Program",0
2020-2021,P4,"Turtle Mountain Media Inc.",Winnipeg,Manitoba,Canada,"Camp Sacred Gifts",English,Comedy,2021-03-29,18000.00,18000.00," Advance ","Development Program",0
2020-2021,P4,"GAME THEORY FILMS INC.",Toronto,Ontario,Canada,"Body and Bones",English,Drama,2021-03-19,15000.00,15000.00," Advance ","Marketing Program",0
2020-2021,P4,"Les Productions du Phare Bleu inc.",Qu�bec,Quebec,Canada,"Le G�n�ral",French,"Historical Drama",2021-02-16,15000.00,15000.00," Advance ","Development Program",0
2020-2021,P4,"Les Productions du Phare Bleu inc.",Qu�bec,Quebec,Canada,H�tel-Dieu,French,"Science fiction/Fantasy/Tale",2021-02-16,15000.00,15000.00," Advance ","Development Program",0
2020-2021,P4,"Mongrel Media Inc.",Toronto,Ontario,Canada,"My Salinger Year",English,Drama,2021-03-04,193987.00,193987.00," Advance ","Marketing Program",0
2020-2021,P4,"Level Film Inc.",Toronto,Ontario,Canada,"Jump, Darling",English,Drama,2021-03-19,32490.00,32490.00," Advance ","Marketing Program",0
2020-2021,P4,"Yorkton Short Film and Video Festival Inc.",Yorkton,Saskatchewan,Canada,"Yorkton Film Festival",0,0,2021-02-15,22045.00,22045.00," Contribution ","Promotion Program",0
2020-2021,P4,"Level Film Inc.",Toronto,Ontario,Canada,"Sugar Daddy",English,Drama,2021-03-11,36090.00,36090.00," Advance ","Marketing Program",0
2020-2021,P4,"Seeing Red Media Inc.",Ohsweken,Ontario,Canada,"'Animated Water Walker' (working title)",English,Action/Adventure,2021-02-17,18000.00,18000.00," Advance ","Development Program",0
2020-2021,P4,"Seeing Red Media Inc.",Ohsweken,Ontario,Canada,"The Execration of Black Bear and John Pickett",English,Horror,2021-02-17,18000.00,18000.00," Advance ","Development Program",0
2020-2021,P4,"Films Rumi inc. (Les)",Montr�al,Quebec,Canada,"DERRI�RE LE RIDEAU",French,Drama,2021-01-18,18000.00,18000.00," Advance ","Development Program",0
2020-2021,P4,"Films Rumi inc. (Les)",Montr�al,Quebec,Canada,"L'HOMME DANS LE TROU",French,Drama,2021-01-18,18000.00,18000.00," Advance ","Development Program",0
2020-2021,P4,"Level Film Inc.",Toronto,Ontario,Canada,"The Kid Detective",English,Comedy,2021-03-19,79875.00,79875.00," Advance ","Marketing Program",0
2020-2021,P4,"Level Film Inc.",Toronto,Ontario,Canada,"Queen of Spades",English,Horror,2021-03-22,22950.00,22950.00," Advance ","Marketing Program",0
2020-2021,P4,"Visaff South Asian Film Festival Society",Surrey,"British Columbia",Canada,"VISAFF South Asian Film Festival",0,0,2021-03-18,5000.00,5000.00," Contribution ","Promotion Program",0
2020-2021,P4,"Grant Street Productions Ltd.",Vancouver,"British Columbia",Canada,"The New Corporation: The Unfortunately Necessary Sequel",English,Documentary,2021-03-08,78750.00,78750.00," Advance ","Marketing Program",0
2020-2021,P4,"Elevation Pictures Corp.",Toronto,Ontario,Canada,"Random Acts of Violence",English,Horror,2021-03-26,197475.00,197475.00," Advance ","Marketing Program",0
2020-2021,P4,"2120172 Ontario Inc. (dba Trinetra Productions)",Toronto,Ontario,Canada,"BRIDGE UNDER THE SEA",English,Drama,2021-01-15,18000.00,18000.00," Advance ","Development Program",0
2020-2021,P4,"2120172 Ontario Inc. (dba Trinetra Productions)",Toronto,Ontario,Canada,RUNAWAYS,English,Drama,2021-01-15,18000.00,18000.00," Advance ","Development Program",0
2020-2021,P4,"Diva Film Productions Inc.",Pickering,Ontario,Canada,"BROWN BABY",English,Drama,2021-02-18,18000.00,18000.00," Advance ","Development Program",0
2020-2021,P4,"Diva Film Productions Inc.",Pickering,Ontario,Canada,"THROUGH THE SAD WOOD OUR CORPSES WILL HANG",English,Drama,2021-02-18,18000.00,18000.00," Advance ","Development Program",0
2020-2021,P4,"Women In Film & Television Vancouver Society",Vancouver,"British Columbia",Canada,"WIFTV's VIWFF and From Our Dark Side",0,0,2021-01-21,15000.00,15000.00," Contribution ","Promotion Program",0
2020-2021,P4,"Ayinke Films Inc.","Toronto O",Ontario,Canada,"Zenzile's Journey",English,Drama,2021-02-08,18000.00,18000.00," Advance ","Development Program",0
2020-2021,P4,"Midnight Shows Inc",Toronto,Ontario,Canada,"ABED'S SHORTWAVE RADIO",English,Drama,2021-01-11,18000.00,18000.00," Advance ","Development Program",0
2020-2021,P4,"Midnight Shows Inc",Toronto,Ontario,Canada,FOGORUTT,English,Drama,2021-01-11,18000.00,18000.00," Advance ","Development Program",0
2020-2021,P4,"Globetrotter Pictures Inc.",Vancouver,"British Columbia",Canada,Creamy,English,Thriller,2021-03-03,18000.00,18000.00," Advance ","Development Program",0
2020-2021,P4,"SILO Entertainment Inc",Vancouver,"British Columbia",Canada,"Dress For Excess",English,Documentary,2021-02-04,18000.00,18000.00," Advance ","Development Program",0
2020-2021,P4,"SILO Entertainment Inc",Vancouver,"British Columbia",Canada,"Jai Hind - Victory to India -",English,Documentary,2021-02-04,18000.00,18000.00," Advance ","Development Program",0
2020-2021,P4,"Brains Motion Pictures Inc.",Montr�al,Quebec,Canada,"GAMES SHE PLAYS",English,Comedy,2021-01-14,18000.00,18000.00," Advance ","Development Program",0
2020-2021,P4,"Brains Motion Pictures Inc.",Montr�al,Quebec,Canada,"LES PAS FINES",French,Comedy,2021-01-14,18000.00,18000.00," Advance ","Development Program",0
2020-2021,P4,"David Lennan Holdings Ltd.",Saskatoon,Saskatchewan,Canada,"Distant Thunder",English,"Historical Drama",2021-03-03,18000.00,18000.00," Advance ","Development Program",0
2020-2021,P4,"David Lennan Holdings Ltd.",Saskatoon,Saskatchewan,Canada,Vanlife,English,Horror,2021-03-03,18000.00,18000.00," Advance ","Development Program",0
2020-2021,P4,"Kybele Films Inc.",Thornhill,Ontario,Canada,Loya,English,Drama,2021-03-03,18000.00,18000.00," Advance ","Development Program",0
2020-2021,P4,"Big Bad Boo Studios Inc.",Vancouver,"British Columbia",Canada,"From Tehran To Tribeca",English,Documentary,2021-03-05,18000.00,18000.00," Advance ","Development Program",0
2020-2021,P4,"Urbansoul Inc.",Toronto,Ontario,Canada,"THE FORTUNE TELLER",English,Horror,2021-01-12,18000.00,18000.00," Advance ","Development Program",0
2020-2021,P4,"Urbansoul Inc.",Toronto,Ontario,Canada,KINGDOM,English,Thriller,2021-01-12,18000.00,18000.00," Advance ","Development Program",0
2020-2021,P4,"Dlite Pictures Entertainment Inc.",Richmond,"British Columbia",Canada,"Boiling Point",English,Action/Adventure,2021-02-18,18000.00,18000.00," Advance ","Development Program",0
2020-2021,P4,"MMM Film Finance International Ltd.",Surrey,"British Columbia",Canada,"Of Heaven And Hell",English,Drama,2021-02-23,18000.00,18000.00," Advance ","Development Program",0
2020-2021,P4,"MMM Film Finance International Ltd.",Surrey,"British Columbia",Canada,"AWARA: The Vagabond",English,Thriller,2021-02-23,18000.00,18000.00," Advance ","Development Program",0
2020-2021,P4,"JAK 416 Productions INC",Toronto,Ontario,Canada,"Tarbaby aka Boston Terror",English,"Historical Drama",2021-03-10,18000.00,18000.00," Advance ","Development Program",0
2020-2021,P4,"JAK 416 Productions INC",Toronto,Ontario,Canada,Eugenie,English,Thriller,2021-03-10,18000.00,18000.00," Advance ","Development Program",0
2020-2021,P4,"Lifted Eyes Media Inc.",Toronto,Ontario,Canada,"What Night Taught Her",English,Documentary,2021-02-23,18000.00,18000.00," Advance ","Development Program",0
2020-2021,P4,"Elevation Pictures Corp.",Toronto,Ontario,Canada,"The Broken Hearts Gallery",English,Comedy,2021-01-11,592587.00,592587.00," Advance ","Marketing Program",0
2020-2021,P4,"Elevation Pictures Corp.",Toronto,Ontario,Canada,"The Nest",English,Drama,2021-03-12,143919.00,143919.00," Advance ","Marketing Program",0
2020-2021,P4,"Str�mHaus Productions Ltd.",Toronto,Ontario,Canada,"Wolf at the Door",English,Drama,2021-02-08,18000.00,18000.00," Advance ","Development Program",0
2020-2021,P4,"BDB Productions Inc.",Toronto,Ontario,Canada,"All 4'Or Nothing",English,Drama,2021-02-18,18000.00,18000.00," Advance ","Development Program",0
2020-2021,P4,"RED BEARD PICTURES INC.",Toronto,Ontario,Canada,INVINCIBLE-ish,English,Comedy,2021-01-17,18000.00,18000.00," Advance ","Development Program",0
2020-2021,P4,"RED BEARD PICTURES INC.",Toronto,Ontario,Canada,"THE BODY IN THE BASEMENT",English,Horror,2021-01-17,18000.00,18000.00," Advance ","Development Program",0
2020-2021,P4,"Sucker Busters Films Inc.",Ajax,Ontario,Canada,"Click of a Button",English,Thriller,2021-02-08,18000.00,18000.00," Advance ","Development Program",0
2020-2021,P4,"Les Productions Nadiaz Inc.",Montreal,Quebec,Canada,"Imane ou la vie",French,Documentary,2021-01-12,18000.00,18000.00," Advance ","Development Program",0
2020-2021,P4,"Paixtriot Inc.",Markham,Ontario,Canada,"Partition 2030",English,Drama,2021-01-25,18000.00,18000.00," Advance ","Development Program",0
2020-2021,P4,"Paixtriot Inc.",Markham,Ontario,Canada,"Where the Elephants Roam",English,Drama,2021-01-25,18000.00,18000.00," Advance ","Development Program",0
2020-2021,P4,"Dynastic Entertainment, Inc.",Edmonton,Alberta,Canada,"The Bride",English,Action/Adventure,2021-03-03,18000.00,18000.00," Advance ","Development Program",0
2020-2021,P4,"Dynastic Entertainment, Inc.",Edmonton,Alberta,Canada,Longing,English,Drama,2021-03-03,18000.00,18000.00," Advance ","Development Program",0
2020-2021,P4,"Verbal Pictures Inc.",Mississauga,Ontario,Canada,"Lockdown At Thorn Valley High",English,Drama,2021-01-19,18000.00,18000.00," Advance ","Development Program",0
2020-2021,P4,"Verbal Pictures Inc.",Mississauga,Ontario,Canada,Criminate,English,Mystery/Crime/Police,2021-01-19,18000.00,18000.00," Advance ","Development Program",0
2020-2021,P4,"9228-3282 Qu�bec inc.",Bromont,Quebec,Canada,"The righteous ones",English,Drama,2021-01-15,18000.00,18000.00," Advance ","Development Program",0
2020-2021,P4,"9228-3282 Qu�bec inc.",Bromont,Quebec,Canada,Undocumented,English,Drama,2021-01-15,18000.00,18000.00," Advance ","Development Program",0
2020-2021,P4,"SRRNDR INC.","Richmond Hill",Ontario,Canada,"Pho Sho",English,Comedy,2021-01-22,18000.00,18000.00," Advance ","Development Program",0
2020-2021,P4,"SRRNDR INC.","Richmond Hill",Ontario,Canada,"The Scars That Bind",English,Thriller,2021-01-22,18000.00,18000.00," Advance ","Development Program",0
2020-2021,P4,"Media Business Institute Inc.",Toronto,Ontario,Canada,"Breaking New Ground: The Caribbean Pioneer Woman",English,Documentary,2021-03-11,18000.00,18000.00," Advance ","Development Program",0
2020-2021,P4,"Media Business Institute Inc.",Toronto,Ontario,Canada,"Shalom Jamaica",English,"Romantic Comedy",2021-03-11,18000.00,18000.00," Advance ","Development Program",0
2020-2021,P4,"Fluent Films Inc.",Montr�al,Quebec,Canada,"The Day Between",English,Drama,2021-01-20,18000.00,18000.00," Advance ","Development Program",0
2020-2021,P4,"Fluent Films Inc.",Montr�al,Quebec,Canada,Autonomy,English,"Science fiction/Fantasy/Tale",2021-01-20,18000.00,18000.00," Advance ","Development Program",0
2020-2021,P4,"Keepsake Film Studio Inc.","Port Moody","British Columbia",Canada,Background,English,Drama,2021-01-12,18000.00,18000.00," Advance ","Development Program",0
2020-2021,P4,"Keepsake Film Studio Inc.","Port Moody","British Columbia",Canada,Replica,English,Drama,2021-01-12,18000.00,18000.00," Advance ","Development Program",0
2020-2021,P4,"Groupe Fouzo Media Inc.",Montreal,Quebec,Canada,MIKLOS,French,Drama,2021-02-04,18000.00,18000.00," Advance ","Development Program",0
2020-2021,P4,"Highway 401 Films Inc.",Toronto,Ontario,Canada,"Geeta Fakes a Wedding",English,Comedy,2021-03-03,18000.00,18000.00," Advance ","Development Program",0
2020-2021,P4,"Head On Pictures Incorporated",Toronto,Ontario,Canada,#Blessed,English,Comedy,2021-01-26,18000.00,18000.00," Advance ","Development Program",0
2020-2021,P4,"Head On Pictures Incorporated",Toronto,Ontario,Canada,Shadows,English,Drama,2021-01-26,18000.00,18000.00," Advance ","Development Program",0
2020-2021,P4,"12382971 Canada Inc",Hamilton,Ontario,Canada,"Girls Like Us",English,Action/Adventure,2021-02-24,18000.00,18000.00," Advance ","Development Program",0
2020-2021,P4,"12382971 Canada Inc",Hamilton,Ontario,Canada,"Meant To Be",English,Drama,2021-02-24,18000.00,18000.00," Advance ","Development Program",0
2020-2021,P4,"Rusty Halo Productions Inc.","Sault Ste. Marie",Ontario,Canada,"The Cabin",English,Mystery/Crime/Police,2021-01-28,18000.00,18000.00," Advance ","Development Program",0
2020-2021,P4,"Rusty Halo Productions Inc.","Sault Ste. Marie",Ontario,Canada,"The Truck Stop",English,Mystery/Crime/Police,2021-01-28,18000.00,18000.00," Advance ","Development Program",0
2020-2021,P4,"BROAD FRAME MEDIA INC.","East York",Ontario,Canada,"FINDING ZENDAYA",English,Drama,2021-02-17,18000.00,18000.00," Advance ","Development Program",0
2020-2021,P4,"BROAD FRAME MEDIA INC.","East York",Ontario,Canada,"GOING NOWHERE",English,Drama,2021-02-17,18000.00,18000.00," Advance ","Development Program",0
2020-2021,P4,"More Hess Productions Inc.",Toronto,Ontario,Canada,"About My Father (Freedom Writer)",English,Documentary,2021-03-09,18000.00,18000.00," Advance ","Development Program",0
2020-2021,P4,"More Hess Productions Inc.",Toronto,Ontario,Canada,"Other Side Of Francis",English,Drama,2021-03-09,18000.00,18000.00," Advance ","Development Program",0
2020-2021,P4,"Digital Warriors Productions Inc.",Vancouver,"British Columbia",Canada,"PMDD: a half life",English,Documentary,2021-03-02,18000.00,18000.00," Advance ","Development Program",0
2020-2021,P4,"Sital Cinema Productions Inc.",Vancouver,"British Columbia",Canada,"At Some Point In Your Life",English,Drama,2021-03-02,18000.00,18000.00," Advance ","Development Program",0
2020-2021,P4,"OBJECTIF 9 INC.",Montr�al,Quebec,Canada,"Le Vet",French,Comedy,2021-01-20,18000.00,18000.00," Advance ","Development Program",0
2020-2021,P4,"OBJECTIF 9 INC.",Montr�al,Quebec,Canada,"Qu�b�cois de Souk",French,Comedy,2021-01-20,18000.00,18000.00," Advance ","Development Program",0
2020-2021,P4,"9205-8494 Qu�bec Inc.",Longueuil,Quebec,Canada,"BROKEN MIRRORS",English,Drama,2021-01-21,18000.00,18000.00," Advance ","Development Program",0
2020-2021,P4,"9205-8494 Qu�bec Inc.",Longueuil,Quebec,Canada,RICOCHET,English,Thriller,2021-01-21,18000.00,18000.00," Advance ","Development Program",0
2020-2021,P4,"Kyoka Film Inc.",Montreal,Quebec,Canada,"I Heard a Funeral",English,Drama,2021-01-22,18000.00,18000.00," Advance ","Development Program",0
2020-2021,P4,"North of Normal Productions Inc.",Vancouver,"British Columbia",Canada,"North of Normal",English,Drama,2021-02-04,0.00,300000.00," Advance ","Production Program","Amended Contract Signed 05-Nov-2020"
2020-2021,P4,"North of Normal Productions Inc.",Vancouver,"British Columbia",Canada,"North of Normal",English,Drama,2021-02-04,300000.00,300000.00," Investment ","Production Program","Amended Contract Signed 05-Nov-2020"
2020-2021,P4,"Wrapped Productions Inc.",Toronto,Ontario,Canada,"The Painting",English,Documentary,2021-02-26,18000.00,18000.00," Advance ","Development Program",0
2020-2021,P4,"Wrapped Productions Inc.",Toronto,Ontario,Canada,Tenaya,English,Drama,2021-02-26,18000.00,18000.00," Advance ","Development Program",0
2020-2021,P4,"Clement Virgo Productions Inc.",Toronto,Ontario,Canada,"How Black Mothers Say I Love You",English,Drama,2021-03-03,18000.00,18000.00," Advance ","Development Program",0
2020-2021,P4,"Clement Virgo Productions Inc.",Toronto,Ontario,Canada,"Sleep Demon",English,Thriller,2021-03-03,18000.00,18000.00," Advance ","Development Program",0
2020-2021,P4,"Cinevedas Inc.",Montr�al,Quebec,Canada,Northbound,English,Drama,2021-01-27,18000.00,18000.00," Advance ","Development Program",0
2020-2021,P4,"Cinevedas Inc.",Montr�al,Quebec,Canada,"The Offence",English,Drama,2021-01-27,18000.00,18000.00," Advance ","Development Program",0
2020-2021,P4,"Pimiento m�dias Inc.",Montr�al,Quebec,Canada,"Zoila and Andy",English,"Historical Drama",2021-02-01,18000.00,18000.00," Advance ","Development Program",0
2020-2021,P4,"Pimiento m�dias Inc.",Montr�al,Quebec,Canada,"Whispering Skin",English,Thriller,2021-02-01,18000.00,18000.00," Advance ","Development Program",0
2020-2021,P4,"Lulo Films Inc.",Toronto,Ontario,Canada,Subversion,English,Thriller,2021-01-14,18000.00,18000.00," Advance ","Development Program",0
2020-2021,P4,"Remembrance Pictures Inc.","West Vancouver","British Columbia",Canada,"Brother, Man",English,Drama,2021-03-08,18000.00,18000.00," Advance ","Development Program",0
2020-2021,P4,"Mahaica Point Media Inc.",Ajax,Ontario,Canada,"Farah and Halima",English,Comedy,2021-01-25,18000.00,18000.00," Advance ","Development Program",0
2020-2021,P4,"Mahaica Point Media Inc.",Ajax,Ontario,Canada,"The Unseen",English,"Science fiction/Fantasy/Tale",2021-01-25,18000.00,18000.00," Advance ","Development Program",0
2020-2021,P4,"Sound Body Productions Inc.",Halifax,"Nova Scotia",Canada,"Nkrabea�s Destiny",English,Musical,2021-01-15,18000.00,18000.00," Advance ","Development Program",0
2020-2021,P4,"Aquatinter Films Ltd.",Vancouver,"British Columbia",Canada,Motherhood,English,Horror,2021-03-03,18000.00,18000.00," Advance ","Development Program",0
2020-2021,P4,"Aquatinter Films Ltd.",Vancouver,"British Columbia",Canada,Reunion,English,Thriller,2021-03-03,18000.00,18000.00," Advance ","Development Program",0
2020-2021,P4,"Maktub Films Inc.",Vancouver,"British Columbia",Canada,"Chin Gone! A Year Without Cinema",English,Drama,2021-03-18,18000.00,18000.00," Advance ","Development Program",0
2020-2021,P4,"Meraki Moving Pictures Inc.",Mississauga,Ontario,Canada,"Women For Peace",English,Action/Adventure,2021-03-25,18000.00,18000.00," Advance ","Development Program",0
2020-2021,P4,"Meraki Moving Pictures Inc.",Mississauga,Ontario,Canada,"Honour Thy Mother",English,Drama,2021-03-25,18000.00,18000.00," Advance ","Development Program",0
2020-2021,P4,"THUB COMMUNICATIONS INC.",Brampton,Ontario,Canada,"Afrofest: Heritage Melting Pot",English,Documentary,2021-01-21,18000.00,18000.00," Advance ","Development Program",0
2020-2021,P4,"THUB COMMUNICATIONS INC.",Brampton,Ontario,Canada,"Innocent Victims",English,Drama,2021-01-21,18000.00,18000.00," Advance ","Development Program",0
2020-2021,P4,"Inaru Films Inc.",Outremont,Quebec,Canada,"Le fils d'Adam",French,Documentary,2021-01-29,18000.00,18000.00," Advance ","Development Program",0
2020-2021,P4,"Silvertrust Communications Inc.",Toronto,Ontario,Canada,"The Marcus Garvey Legacy",English,Documentary,2021-02-09,18000.00,18000.00," Advance ","Development Program",0
2020-2021,P4,"Silvertrust Communications Inc.",Toronto,Ontario,Canada,Trailblazer,English,Drama,2021-02-09,18000.00,18000.00," Advance ","Development Program",0
2020-2021,P4,"Northbound Pictures Inc.","Richmond Hill",Ontario,Canada,Antecedent,English,Drama,2021-02-10,18000.00,18000.00," Advance ","Development Program",0
2020-2021,P4,"Northbound Pictures Inc.","Richmond Hill",Ontario,Canada,"El Duende",English,Drama,2021-02-10,18000.00,18000.00," Advance ","Development Program",0
2020-2021,P4,"Ngozika Productions Inc.",Toronto,Ontario,Canada,"Black Girl's Guide to the Universe",English,Comedy,2021-02-16,18000.00,18000.00," Advance ","Development Program",0
2020-2021,P4,"Blue Lake Films Ltd.",Victoria,"British Columbia",Canada,"The Bryce Lee Story",English,Comedy,2021-02-03,18000.00,18000.00," Advance ","Development Program",0
2020-2021,P4,"Blue Lake Films Ltd.",Victoria,"British Columbia",Canada,"The Virgin Mary Had a Little Lamb",English,Comedy,2021-02-03,18000.00,18000.00," Advance ","Development Program",0
2020-2021,P4,"FilmLoft Media Inc.",Aurora,Ontario,Canada,"Intro To Swimming",English,Drama,2021-03-01,18000.00,18000.00," Advance ","Development Program",0
2020-2021,P4,"FilmLoft Media Inc.",Aurora,Ontario,Canada,"Unit 1104",English,Drama,2021-03-01,18000.00,18000.00," Advance ","Development Program",0
2020-2021,P4,"Film Garage North Inc.",Kitchener,Ontario,Canada,"Soaked in Carnival",English,Documentary,2021-02-03,18000.00,18000.00," Advance ","Development Program",0
2020-2021,P4,"Film Garage North Inc.",Kitchener,Ontario,Canada,"Carnival Season",English,Musical,2021-02-03,18000.00,18000.00," Advance ","Development Program",0
2020-2021,P4,"Tokens On Call Productions Inc.",Waterloo,Ontario,Canada,"Distant Cousins",English,"Historical Drama",2021-02-16,18000.00,18000.00," Advance ","Development Program",0
2020-2021,P4,"100 Dragons Productions Inc.",Toronto,Ontario,Canada,"Wild Willie",English,Drama,2021-01-15,18000.00,18000.00," Advance ","Development Program",0
2020-2021,P4,"100 Dragons Productions Inc.",Toronto,Ontario,Canada,"15 Kinds of Casual Sex",English,"Romantic Comedy",2021-01-15,18000.00,18000.00," Advance ","Development Program",0
2020-2021,P4,"Greenground Productions Inc.",Montr�al,Quebec,Canada,"Snow Birds",English,Mystery/Crime/Police,2021-01-27,18000.00,18000.00," Advance ","Development Program",0
2020-2021,P4,"Blue Goat Films Inc.",Calgary,Alberta,Canada,"Maple Moth",English,Drama,2021-02-23,18000.00,18000.00," Advance ","Development Program",0
2020-2021,P4,"Fae Pictures Inc.",Toronto,Ontario,Canada,"Queen Tut",English,Drama,2021-01-15,18000.00,18000.00," Advance ","Development Program",0
2020-2021,P4,"Fae Pictures Inc.",Toronto,Ontario,Canada,"We Are",English,Drama,2021-01-15,18000.00,18000.00," Advance ","Development Program",0
2020-2021,P4,"2395315 Ontario Ltd. (dba Raincatcher Media)",Brampton,Ontario,Canada,"NAMASTE SANTA",English,Comedy,2021-01-12,18000.00,18000.00," Advance ","Development Program",0
2020-2021,P4,"Khoya Films Inc.",Sarnia,Ontario,Canada,Sainte-Foy,French,Drama,2021-02-17,18000.00,18000.00," Advance ","Development Program",0
2020-2021,P4,"Oya Media Group Inc.",Toronto,Ontario,Canada,"Bam Bam: The Story of Sister Nancy",English,Documentary,2021-01-22,18000.00,18000.00," Advance ","Development Program",0
2020-2021,P4,"Oya Media Group Inc.",Toronto,Ontario,Canada,"This Land of Ours",English,Documentary,2021-01-22,18000.00,18000.00," Advance ","Development Program",0
2020-2021,P4,"Dunya Media Inc.",Surrey,"British Columbia",Canada,"The Mirror",English,Horror,2021-02-24,18000.00,18000.00," Advance ","Development Program",0
2020-2021,P4,"Dunya Media Inc.",Surrey,"British Columbia",Canada,"Welcome to Surrey",English,"Romantic Comedy",2021-02-24,18000.00,18000.00," Advance ","Development Program",0
2020-2021,P4,"Lockpicker Productions Inc.",Toronto,Ontario,Canada,"Reasons to Travel",English,Drama,2021-02-18,18000.00,18000.00," Advance ","Development Program",0
2020-2021,P4,"Lockpicker Productions Inc.",Toronto,Ontario,Canada,"Below Morning",English,"Science fiction/Fantasy/Tale",2021-02-18,18000.00,18000.00," Advance ","Development Program",0
2020-2021,P4,"10620114 CANADA INC.",Montr�al,Quebec,Canada,"Au royaume du conte",French,Documentary,2021-01-22,18000.00,18000.00," Advance ","Development Program",0
2020-2021,P4,"10620114 CANADA INC.",Montr�al,Quebec,Canada,"3 nuances de noir",French,Drama,2021-01-22,18000.00,18000.00," Advance ","Development Program",0
2020-2021,P4,"Viva Mantra Films Inc.",Vancouver,"British Columbia",Canada,"Out of the Stands",English,Documentary,2021-03-03,18000.00,18000.00," Advance ","Development Program",0
2020-2021,P4,"Viva Mantra Films Inc.",Vancouver,"British Columbia",Canada,"Stories My Mother Told Me",English,Drama,2021-03-03,18000.00,18000.00," Advance ","Development Program",0
2020-2021,P4,"Cotton Bush Productions Inc",Montreal,Quebec,Canada,"Moving Day",English,Drama,2021-01-27,18000.00,18000.00," Advance ","Development Program",0
2020-2021,P4,"Black Wealth Media inc.",Montr�al,Quebec,Canada,Jackie,French,Drama,2021-01-19,18000.00,18000.00," Advance ","Development Program",0
2020-2021,P4,"Cricket Nation Production Ltd.",Toronto,Ontario,Canada,"Roadkill: The Allen Stanford Story",English,Documentary,2021-02-16,18000.00,18000.00," Advance ","Development Program",0
2020-2021,P4,"Cricket Nation Production Ltd.",Toronto,Ontario,Canada,"SkyDome: Rise and Fall",English,Documentary,2021-02-16,18000.00,18000.00," Advance ","Development Program",0
2020-2021,P4,"Bel Ange Moon Productions Inc.",Laval,Quebec,Canada,"La Dangereuse",French,Thriller,2021-01-25,18000.00,18000.00," Advance ","Development Program",0
2020-2021,P4,"WTSF Films Inc.",Vancouver,"British Columbia",Canada,"Every Style of Danger",English,Action/Adventure,2021-02-26,18000.00,18000.00," Advance ","Development Program",0
2020-2021,P4,"WTSF Films Inc.",Vancouver,"British Columbia",Canada,"Red Moon",English,Horror,2021-02-26,18000.00,18000.00," Advance ","Development Program",0
2020-2021,P4,"1207405 B.C. Ltd. dba Spitshine Flicks",Vancouver,"British Columbia",Canada,"Lupe Q and the Galactic Earworms",English,"Science fiction/Fantasy/Tale",2021-02-03,18000.00,18000.00," Advance ","Development Program",0
2020-2021,P4,"Musubi Arts Inc.",Burnaby,"British Columbia",Canada,AKASHI,English,Drama,2021-02-22,18000.00,18000.00," Advance ","Development Program",0
2020-2021,P4,"GYU Films International Inc.",Richmond,"British Columbia",Canada,"One Man City",English,Drama,2021-03-03,18000.00,18000.00," Advance ","Development Program",0
2020-2021,P4,"ShoRick Productions Inc.","Richmond Hill",Ontario,Canada,Zayla,English,Drama,2021-02-18,18000.00,18000.00," Advance ","Development Program",0
2020-2021,P4,"Toronto International Film Festival Inc.",Toronto,Ontario,Canada,"Toronto International Film Festival",0,0,2021-02-16,700000.00,700000.00," Contribution ","Promotion Program",0
2020-2021,P4,"Ryan Singh Productions Ltd.",Toronto,Ontario,Canada,Delivery,English,Comedy,2021-02-26,18000.00,18000.00," Advance ","Development Program",0
2020-2021,P4,"Ryan Singh Productions Ltd.",Toronto,Ontario,Canada,Witness,English,Drama,2021-02-26,18000.00,18000.00," Advance ","Development Program",0
2020-2021,P4,"GrandMuse Pictures LTD",Vancouver,"British Columbia",Canada,Colorblind,English,Drama,2021-03-03,18000.00,18000.00," Advance ","Development Program",0
2020-2021,P4,"GrandMuse Pictures LTD",Vancouver,"British Columbia",Canada,Khayyam,English,Drama,2021-03-03,18000.00,18000.00," Advance ","Development Program",0
2020-2021,P4,"5034962 Ontario Ltd.",Toronto,Ontario,Canada,"Matriarchal research and  Cinematic Language  towards treatment",English,Documentary,2021-02-16,18000.00,18000.00," Advance ","Development Program",0
2020-2021,P4,"12447339 Canada Inc.",Toronto,Ontario,Canada,Migrants,English,Drama,2021-02-03,18000.00,18000.00," Advance ","Development Program",0
2020-2021,P4,"Paragraph Pictures Inc.",Toronto,Ontario,Canada,"A Land of Savages",English,Documentary,2021-03-22,18000.00,18000.00," Advance ","Development Program",0
2020-2021,P4,"Inavision Productions Inc.",Burnaby,"British Columbia",Canada,"Finding My Seoul",English,"Romantic Comedy",2021-03-17,18000.00,18000.00," Advance ","Development Program",0
2020-2021,P4,"Storyline Fx Inc.",Winnipeg,Manitoba,Canada,"Freeze Frame Int'l Film Festival For Kids of All Ages",0,0,2021-02-22,9345.00,9345.00," Contribution ","Promotion Program",0
2020-2021,P4,"Afro Flix Inc.",Toronto,Ontario,Canada,"Blood 4 Blood",English,Thriller,2021-01-27,18000.00,18000.00," Advance ","Development Program",0
2020-2021,P4,"Magon Entertainment Inc.",Toronto,Ontario,Canada,"Something Delicious",English,Drama,2021-02-15,18000.00,18000.00," Advance ","Development Program",0
2020-2021,P4,"Da-L� Films Inc.",Montreal,Quebec,Canada,"Directions for Monarchs",English,Documentary,2021-01-21,18000.00,18000.00," Advance ","Development Program",0
2020-2021,P4,"Doe Eye Media Productions Inc.",Toronto,Ontario,Canada,"She Pirate of the Caribbean",English,"Historical Drama",2021-01-13,18000.00,18000.00," Advance ","Development Program",0
2020-2021,P4,"Akelo Media Corp",Toronto,Ontario,Canada,"The Long Goodbye",English,Documentary,2021-03-01,18000.00,18000.00," Advance ","Development Program",0
2020-2021,P4,"Afro Dynamic Films Inc.",Montreal,Quebec,Canada,"Through The Eyes of a Quiet Lion",English,Drama,2021-01-27,18000.00,18000.00," Advance ","Development Program",0
2020-2021,P4,"Studio Tokosel Inc.",Toronto,Ontario,Canada,Gawlo,English,Documentary,2021-01-25,18000.00,18000.00," Advance ","Development Program",0
2020-2021,P4,"Blood in the Snow Canadian Film Festival",Toronto,Ontario,Canada,"Blood in the Snow Canadian Film Festival",0,0,2021-02-15,5000.00,5000.00," Contribution ","Promotion Program",0
2020-2021,P4,"Hamilton-Mehta Productions Inc.",Toronto,Ontario,Canada,"Funny Boy",English,Drama,2021-03-26,106042.00,106042.00," Advance ","Marketing Program",0
2020-2021,P4,"Interactive Ontario Industry Association",Toronto,Ontario,Canada,"Interactive Ont Professional Development Virtual Initiatives",0,0,2021-02-23,20000.00,20000.00," Contribution ","Promotion Program",0
2020-2021,P4,"Banff Television Festival Foundation",Calgary,Alberta,Canada,"BANFF World Media Festival 2020 - Virtual Edition",0,0,2021-02-26,85000.00,85000.00," Contribution ","Promotion Program",0
2020-2021,P4,"Calgary International Film Festival Society",Calgary,Alberta,Canada,"Calgary International Film Festival",0,0,2021-02-02,42038.00,42038.00," Contribution ","Promotion Program",0
2020-2021,P4,"Oakville Festivals of Film and Art",Oakville,Ontario,Canada,"Oakville Film Festival",0,0,2021-01-11,5000.00,5000.00," Contribution ","Promotion Program",0
2020-2021,P4,"Documentary Organization of Canada",Toronto,Ontario,Canada,"Festival Concierge",0,0,2021-03-03,8000.00,8000.00," Contribution ","Promotion Program",0
2020-2021,P4,"Esteem Productions Ltd.",Surrey,"British Columbia",Canada,TREND,English,Documentary,2021-03-08,18000.00,18000.00," Advance ","Development Program",0
2020-2021,P4,"Esteem Productions Ltd.",Surrey,"British Columbia",Canada,"I CAN FIND ANOTHER ONE",English,Drama,2021-03-08,18000.00,18000.00," Advance ","Development Program",0
2020-2021,P4,"Yukon Film Society",Whitehorse,Yukon,Canada,"Available Light Film Festival",0,0,2021-01-20,8813.00,8813.00," Contribution ","Promotion Program",0
2020-2021,P4,"The Inside Out LGBT Film Festival Inc.",Toronto,Ontario,Canada,"Inside Out 2021 LGBTQ Film Festival",0,0,2021-03-03,5000.00,5000.00," Contribution ","Promotion Program",0
2020-2021,P4,"The Centre for Aboriginal Media (Ontario)",Toronto,Ontario,Canada,"imagineNATIVE Film + Media Arts Festival",0,0,2021-03-22,51223.00,51223.00," Contribution ","Promotion Program",0
2020-2021,P4,"Charles Taylor Theatre & Media Arts Association",Dartmouth,"Nova Scotia",Canada,"Emerging Lens Cultural Film Festival",0,0,2021-01-27,5000.00,5000.00," Contribution ","Promotion Program",0
2020-2021,P4,"Global Visions Festival Society",Edmonton,Alberta,Canada,"NorthwestFest 2021",0,0,2021-02-22,5000.00,5000.00," Contribution ","Promotion Program",0
2020-2021,P4,"Alberta Media Production Industries  Association (AMPIA)",Edmonton,Alberta,Canada,"AMPIA Professional Development Activities",0,0,2021-01-26,20000.00,20000.00," Contribution ","Promotion Program",0
2020-2021,P4,"ON SCREEN MANITOBA INCORPORATED",Winnipeg,Manitoba,Canada,"All Access",0,0,2021-01-19,17000.00,17000.00," Contribution ","Promotion Program",0
2020-2021,P4,"Action Film Lt�e.",Beloeil,Quebec,Canada,"Programme d'aide � la diffusion en salle  Action Film Lt�e.",0,0,2021-03-18,16263.00,16263.00," Contribution ","Programme d�aide � la diffusion en salle",0
2020-2021,P4,"Dauphin Community Cinema Inc.",Dauphin,Manitoba,Canada,"Theatrical Exhibition Program  Dauphin Community Cinema Inc.",0,0,2021-01-15,10798.00,10798.00," Contribution ","Programme d�aide � la diffusion en salle",0
2020-2021,P4,"Azur Divertissements Inc",Cowansville,Quebec,Canada,"Programme d'aide � la diffusion en salle  Azur Divertissements Inc",0,0,2021-01-06,32049.50,32049.50," Contribution ","Programme d�aide � la diffusion en salle",0
2020-2021,P4,"Fox Theatre Ltd.",Toronto,Ontario,Canada,"Theatrical Exhibition Program  Fox Theatre Ltd.",0,0,2021-02-14,11273.50,11273.50," Contribution ","Programme d�aide � la diffusion en salle",0
2020-2021,P4,"Film.Ca Cinemas Inc.",Oakville,Ontario,Canada,"Theatrical Exhibition Program  Film.Ca Cinemas Inc.",0,0,2021-01-25,11572.00,11572.00," Contribution ","Programme d�aide � la diffusion en salle",0
2020-2021,P4,"The Movie Mill Inc.",Lethbridge,Alberta,Canada,"Theatrical Exhibition Program  The Movie Mill Inc.",0,0,2021-01-04,12437.00,12437.00," Contribution ","Programme d�aide � la diffusion en salle",0
2020-2021,P4,"Cinema Peninsule Lt�e",Tracadie,"New Brunswick",Canada,"Programme d'aide � la diffusion en salle  Cinema Peninsule Lt�e",0,0,2021-01-25,13115.00,13115.00," Contribution ","Programme d�aide � la diffusion en salle",0
2020-2021,P4,"Winnipeg Film Group Inc.",Winnipeg,Manitoba,Canada,"Theatrical Exhibition Program  Winnipeg Film Group Inc.",0,0,2021-01-22,12626.00,12626.00," Contribution ","Programme d�aide � la diffusion en salle",0
2020-2021,P4,"Fondation Qu�bec cin�ma",Montr�al,Quebec,Canada,"Gala Qu�bec Cin�ma",0,0,2021-02-24,367144.00,367144.00," Contribution ","Promotion Program",0
2020-2021,P4,"Filmo Vision Lt�e",L�vis,Quebec,Canada,"Programme d'aide � la diffusion en salle  Filmo Vision Lt�e",0,0,2021-02-03,40000.00,40000.00," Contribution ","Programme d�aide � la diffusion en salle",0
2020-2021,P4,"City Centre Development Agency","Medicine Hat",Alberta,Canada,"Theatrical Exhibition Program  City Centre Development Agency",0,0,2021-03-29,10413.00,10413.00," Contribution ","Programme d�aide � la diffusion en salle",0
2020-2021,P4,"2736-9396 Quebec Inc. - Cinema Magog",Cowansville,Quebec,Canada,"Programme d'aide � la diffusion en salle  2736-9396 Quebec Inc. - Cinema Magog",0,0,2021-01-04,22084.00,22084.00," Contribution ","Programme d�aide � la diffusion en salle",0
2020-2021,P4,"May Theatres (1984) Limited","Sherwood Park",Alberta,Canada,"Theatrical Exhibition Program  May Theatres (1984) Limited",0,0,2021-02-08,12283.00,12283.00," Contribution ","Programme d�aide � la diffusion en salle",0
2020-2021,P4,"Kicking Horse Movies Ltd.",Golden,"British Columbia",Canada,"Theatrical Exhibition Program  Kicking Horse Movies Ltd.",0,0,2021-01-15,10179.00,10179.00," Contribution ","Programme d�aide � la diffusion en salle",0
2020-2021,P4,"Centre d'art et d'essai de la Cin�math�que qu�b�coise",Montr�al,Quebec,Canada,"Programme d'aide � la diffusion en salle  Centre d'art et d'essai de la Cin�math�que qu�b�coise",0,0,2021-01-19,17921.50,17921.50," Contribution ","Programme d�aide � la diffusion en salle",0
2020-2021,P4,"Victoria Independent Film and Video Festival",Victoria,"British Columbia",Canada,"Theatrical Exhibition Program  Victoria Independent Film and Video Festival",0,0,2021-01-05,11519.50,11519.50," Contribution ","Programme d�aide � la diffusion en salle",0
2020-2021,P4,"Cinema Pine Inc",Sainte-Ad�le,Quebec,Canada,"Programme d'aide � la diffusion en salle  Cinema Pine Inc",0,0,2021-01-05,23860.00,23860.00," Contribution ","Programme d�aide � la diffusion en salle",0
2020-2021,P4,Kino'00,Montr�al,Quebec,Canada,"Kino Mentorat et Film Choral",0,0,2021-01-14,8000.00,8000.00," Contribution ","Promotion Program",0
2020-2021,P4,"Cin�ma Moderne",Montr�al,Quebec,Canada,"Programme d'aide � la diffusion en salle  Cin�ma Moderne",0,0,2021-01-05,14984.50,14984.50," Contribution ","Programme d�aide � la diffusion en salle",0
2020-2021,P4,"Raven Banner Releasing Inc.",Toronto,Ontario,Canada,"Psycho Goreman",English,"Science fiction/Fantasy/Tale",2021-02-02,52387.50,52387.50," Advance ","Marketing Program",0
2020-2021,P4,"Raven Banner Releasing Inc.",Toronto,Ontario,Canada,"COME TRUE",English,Thriller,2021-03-11,56100.00,56100.00," Advance ","Marketing Program",0
2020-2021,P4,"Cinema Megantic",FRONTENAC,Quebec,Canada,"Programme d'aide � la diffusion en salle  Cinema Megantic",0,0,2021-03-02,11667.00,11667.00," Contribution ","Programme d�aide � la diffusion en salle",0
2020-2021,P4,"Cin�mas Guzzo Inc.",Terrebonne,Quebec,Canada,"Theatrical Exhibition Program  Cin�mas Guzzo Inc.",0,0,2021-01-25,54390.00,54390.00," Contribution ","Programme d�aide � la diffusion en salle",0
2020-2021,P4,"Hot Docs",Toronto,Ontario,Canada,"Theatrical Exhibition Program  Hot Docs",0,0,2021-01-05,19291.50,19291.50," Contribution ","Programme d�aide � la diffusion en salle",0
2020-2021,P4,"Cin�ma le Tapis Rouge Inc.",Trois-Rivi�res,Quebec,Canada,"Programme d'aide � la diffusion en salle  Cin�ma le Tapis Rouge Inc.",0,0,2021-01-05,25000.00,25000.00," Contribution ","Programme d�aide � la diffusion en salle",0
2020-2021,P4,"9001-5967 Qu�bec Inc.",Matane,Quebec,Canada,"Programme d'aide � la diffusion en salle  9001-5967 Qu�bec Inc.",0,0,2021-01-12,14206.00,14206.00," Contribution ","Programme d�aide � la diffusion en salle",0
2020-2021,P4,"Cochrane Theatres Inc",Cochrane,Alberta,Canada,"Theatrical Exhibition Program  Cochrane Theatres Inc",0,0,2021-01-19,10362.50,10362.50," Contribution ","Programme d�aide � la diffusion en salle",0
2020-2021,P4,"Elevation Pictures Corp.",Toronto,Ontario,Canada,Possessor,English,Drama,2021-03-26,225163.00,225163.00," Advance ","Marketing Program",0
2020-2021,P4,"Elevation Pictures Corp.",Toronto,Ontario,Canada,"Guest of Honour",English,Drama,2021-03-11,206651.25,206651.25," Advance ","Marketing Program",0
2020-2021,P4,"CIN�MA BIERMANS INC.",Shawinigan,Quebec,Canada,"Programme d'aide � la diffusion en salle  CIN�MA BIERMANS INC.",0,0,2021-01-18,25000.00,25000.00," Contribution ","Programme d�aide � la diffusion en salle",0
2020-2021,P4,"Cin�-Quilles D.L. inc.","LA MALBAIE",Quebec,Canada,"Programme d'aide � la diffusion en salle  Cin�-Quilles D.L. inc.",0,0,2021-01-19,11926.00,11926.00," Contribution ","Programme d�aide � la diffusion en salle",0
2020-2021,P4,"Les Cin�mas Cin� Entreprise inc",Terrebonne,Quebec,Canada,"Programme d'aide � la diffusion en salle  Les Cin�mas Cin� Entreprise inc",0,0,2021-01-19,55000.00,55000.00," Contribution ","Programme d�aide � la diffusion en salle",0
2020-2021,P4,"9034-7097 QC Inc.",Rouyn-Noranda,Quebec,Canada,"Programme d'aide � la diffusion en salle  9034-7097 QC Inc.",0,0,2021-01-05,20005.05,20005.05," Contribution ","Programme d�aide � la diffusion en salle",0
2020-2021,P4,"Gestion Gira Inc.",Rimouski,Quebec,Canada,"Programme d'aide � la diffusion en salle  Gestion Gira Inc.",0,0,2021-02-05,40000.00,40000.00," Contribution ","Programme d�aide � la diffusion en salle",0
2020-2021,P4,"9042-1330 Quebec Inc.",Amos,Quebec,Canada,"Programme d'aide � la diffusion en salle  9042-1330 Quebec Inc.",0,0,2021-01-07,13244.50,13244.50," Contribution ","Programme d�aide � la diffusion en salle",0
2020-2021,P4,"1901355 Ontario Inc.",GRAVENHURST,Ontario,Canada,"Theatrical Exhibition Program  1901355 Ontario Inc.",0,0,2021-02-08,10453.50,10453.50," Contribution ","Programme d�aide � la diffusion en salle",0
2020-2021,P4,"0859098 B.C. Ltd.",Trail,"British Columbia",Canada,"Theatrical Exhibition Program  0859098 B.C. Ltd.",0,0,2021-02-08,10332.50,10332.50," Contribution ","Programme d�aide � la diffusion en salle",0
2020-2021,P4,"Festival du film de l'Outaouais",Montr�al,Quebec,Canada,"Festival du film de l'Outaouais",0,0,2021-02-23,21069.00,21069.00," Contribution ","Promotion Program",0
2020-2021,P4,"9265-2775 Qu�bec Inc.",Montr�al,Quebec,Canada,"Arsenault & Fils",French,Drama,2021-03-26,1102562.00,1102562.00," Investment ","Production Program",0
2020-2021,P4,"4417194 Canada Inc. o/s Cinema St-Eustache",St-Eustache,Quebec,Canada,"Programme d'aide � la diffusion en salle  4417194 Canada Inc. o/s Cinema St-Eustache",0,0,2021-02-17,40000.00,40000.00," Contribution ","Programme d�aide � la diffusion en salle",0
2020-2021,P4,"Les Films Opale Inc.",Montr�al,Quebec,Canada,"Le guide de la famille parfaite",French,Comedy,2021-03-19,330117.00,330117.00," Advance ","Marketing Program",0
2020-2021,P4,"Les Films Opale Inc.",Montr�al,Quebec,Canada,Confessions,French,Mystery/Crime/Police,2021-03-20,286081.00,286081.00," Advance ","Marketing Program",0
2020-2021,P4,"Centre Culturel de Caraquet Inc. o/s Cin�ma du Centre",Caraquet,"New Brunswick",Canada,"Programme d'aide � la diffusion en salle  Centre Culturel de Caraquet Inc. o/s Cin�ma du Centre",0,0,2021-01-14,14445.50,14445.50," Contribution ","Programme d�aide � la diffusion en salle",0
2020-2021,P4,"Les Films Opale Inc.",Montr�al,Quebec,Canada,"Les oiseaux ivres",French,Drama,2021-03-22,123000.00,123000.00," Advance ","Marketing Program",0
2020-2021,P4,"2018180 Ontario Ltd.",Windsor,Ontario,Canada,"Theatrical Exhibition Program  2018180 Ontario Ltd.",0,0,2021-02-17,15872.00,15872.00," Contribution ","Programme d�aide � la diffusion en salle",0
2020-2021,P4,"Les Arts de la sc�ne de Montmagny",Montmagny,Quebec,Canada,"Programme d'aide � la diffusion en salle  Les Arts de la sc�ne de Montmagny",0,0,2021-01-28,11893.00,11893.00," Contribution ","Programme d�aide � la diffusion en salle",0
2020-2021,P4,"Vues d'Afrique",Montr�al,Quebec,Canada,"Festival international de cin�ma Vues d'Afrique",0,0,2021-02-03,17860.00,17860.00," Contribution ","Promotion Program",0
2020-2021,P4,"Cinema Carnaval inc",Chateauguay,Quebec,Canada,"Theatrical Exhibition Program  Cinema Carnaval inc",0,0,2021-02-08,11048.50,11048.50," Contribution ","Programme d�aide � la diffusion en salle",0
2020-2021,P4,"YUPPIE FILMS INC.",Valleyfield,Quebec,Canada,"Programme d'aide � la diffusion en salle  YUPPIE FILMS INC.",0,0,2021-02-08,23296.50,23296.50," Contribution ","Programme d�aide � la diffusion en salle",0
2020-2021,P4,"2738-4478 Qu�bec Inc. ( Cin�ma le sc�nario)","La Pocatiere",Quebec,Canada,"Programme d'aide � la diffusion en salle  2738-4478 Qu�bec Inc. ( Cin�ma le sc�nario)",0,0,2021-02-10,13653.50,13653.50," Contribution ","Programme d�aide � la diffusion en salle",0
2020-2021,P4,"Island Media Arts Co-Operative Limited",Charlottetown,"Prince Edward Island",Canada,"The PEI Screenwriters' Bootcamp 2021",0,0,2021-01-22,15000.00,15000.00," Contribution ","Promotion Program",0
2020-2021,P4,"The Film And Video Arts Society of Alberta",Edmonton,Alberta,Canada,"FAVA FEST 2021",0,0,2021-02-19,5000.00,5000.00," Contribution ","Promotion Program",0
2020-2021,P4,"The Screening Room Inc.",Kingston,Ontario,Canada,"Theatrical Exhibition Program  The Screening Room Inc.",0,0,2021-01-20,12294.50,12294.50," Contribution ","Programme d�aide � la diffusion en salle",0
2020-2021,P4,"2416-1200 Qu�bec Inc",Val-d'Or,Quebec,Canada,"Programme d'aide � la diffusion en salle  2416-1200 Qu�bec Inc",0,0,2021-02-01,19049.50,19049.50," Contribution ","Programme d�aide � la diffusion en salle",0
2020-2021,P4,"CINE STARZ ORLEANS INC.","L'Ile Perrot",Quebec,Canada,"Theatrical Exhibition Program  CINE STARZ ORLEANS INC.",0,0,2021-02-26,22626.50,22626.50," Contribution ","Programme d�aide � la diffusion en salle",0
2020-2021,P4,"Hyland Cinema Inc.",London,Ontario,Canada,"Theatrical Exhibition Program  Hyland Cinema Inc.",0,0,2021-01-20,12853.00,12853.00," Contribution ","Programme d�aide � la diffusion en salle",0
2020-2021,P4,"Caravane Films Productions",Chicoutimi,Quebec,Canada,"Festival REGARD / March� du court",0,0,2021-02-09,37159.00,37159.00," Contribution ","Promotion Program",0
2020-2021,P4,"Weengushk Film Institute (WFI)",M'Chigeeng,Ontario,Canada,"LAB 1:  FILM PRODUCTION",0,0,2021-03-18,25000.00,25000.00," Contribution ","Promotion Program",0
2020-2021,P4,"Reel Shorts Film Society","Grande Prairie",Alberta,Canada,"Reel Shorts Film Festival",0,0,2021-02-05,5000.00,5000.00," Contribution ","Promotion Program",0
2020-2021,P4,"The Standard Model Inc.",Toronto,Ontario,Canada,"Violation (aka Right between the Eyes)",English,Thriller,2021-02-17,19500.00,19500.00," Contribution ","International Marketing Program",0
2020-2021,P4,"Canadian Filmmakers Festival",Toronto,Ontario,Canada,"Canadian Filmmakers Festival",0,0,2021-03-17,5000.00,5000.00," Contribution ","Promotion Program",0
2020-2021,P4,"The Female Eye Film Festival",Woodbridge,Ontario,Canada,"Female Eye Film Festival",0,0,2021-03-08,5000.00,5000.00," Contribution ","Promotion Program",0
2020-2021,P4,"Carbon Arc Cinema Co-op Ltd.",Halifax,"Nova Scotia",Canada,"Animation Festival of Halifax (AFX)",0,0,2021-02-01,5000.00,5000.00," Contribution ","Promotion Program",0
2020-2021,P4,"Atlantic Filmmakers Cooperative Limited",Halifax,"Nova Scotia",Canada,"Halifax Independent Filmmakers Festival",0,0,2021-01-26,5000.00,5000.00," Contribution ","Promotion Program",0
2020-2021,P4,"Carrousel international du film de Rimouski (Le)",Rimouski,Quebec,Canada,"Carrousel international du film de Rimouski",0,0,2021-02-05,25152.00,25152.00," Contribution ","Promotion Program",0
2020-2021,P4,"Meridian Artists Inc.",Toronto,Ontario,Canada,"Toronto Screenwriting Conference",0,0,2021-03-26,8000.00,8000.00," Contribution ","Promotion Program",0
2020-2021,P4,"Reel to Real: A Celebration Of Moving Images For Youth Society",Vancouver,"British Columbia",Canada,"Reel 2 Real International Film Festival for Youth",0,0,2021-02-17,7528.00,7528.00," Contribution ","Promotion Program",0
2020-2021,P4,"Women In Film and Television - Atlantic",Halifax,"Nova Scotia",Canada,"Women Making Waves Conference",0,0,2021-02-04,5000.00,5000.00," Contribution ","Promotion Program",0
2020-2021,P4,"Corporation Augustin-Ch�nier Inc. (Cin�ma du Rift)",Ville-Marie,Quebec,Canada,"Programme d'aide � la diffusion en salle  Corporation Augustin-Ch�nier Inc. (Cin�ma du Rift)",0,0,2021-01-29,11498.00,11498.00," Contribution ","Programme d�aide � la diffusion en salle",0
2020-2021,P4,"Medium Density Fibreboard Films Inc.",Toronto,Ontario,Canada,"Anne at 13000 ft",English,Drama,2021-03-04,24976.50,24976.50," Advance ","Marketing Program",0
2020-2021,P4,"9166-7972 Qu�bec inc.",ROBERVAL,Quebec,Canada,"Programme d'aide � la diffusion en salle  9166-7972 Qc inc",0,0,2021-02-16,15304.50,15304.50," Contribution ","Programme d�aide � la diffusion en salle",0
2020-2021,P4,"Elevation Pictures Corp.",Toronto,Ontario,Canada,Stardust,English,Drama,2021-03-29,100266.00,100266.00," Advance ","Marketing Program",0
2020-2021,P4,"Corporation du Cin�ma Beaubien",Montr�al,Quebec,Canada,"Programme d'aide � la diffusion en salle  Corporation du Cin�ma Beaubien",0,0,2021-02-15,25000.00,25000.00," Contribution ","Programme d�aide � la diffusion en salle",0
2020-2021,P4,"Corporation du Cin�ma du Parc",Montr�al,Quebec,Canada,"Programme d'aide � la diffusion en salle  Corporation du Cin�ma du Parc",0,0,2021-02-15,20528.50,20528.50," Contribution ","Programme d�aide � la diffusion en salle",0
2020-2021,P4,"Corporation du Cin�ma du Mus�e",Montr�al,Quebec,Canada,"Programme d'aide � la diffusion en salle  Corporation du Cin�ma du Mus�e",0,0,2021-02-15,20136.00,20136.00," Contribution ","Programme d�aide � la diffusion en salle",0
2020-2021,P4,"Maison 4:3 Inc.",Montr�al,Quebec,Canada,"Au Nord d'Albany",French,Drama,2021-03-23,107820.00,107820.00," Advance ","Marketing Program",0
2020-2021,P4,"Maison 4:3 Inc.",Montr�al,Quebec,Canada,Babysitter,French,Comedy,2021-03-22,172545.00,172545.00," Advance ","Marketing Program",0
2020-2021,P4,"CINE-CENTRE VIDEO INC.",Qu�bec,Quebec,Canada,"Programme d'aide � la diffusion en salle  CINE-CENTRE VIDEO INC.",0,0,2021-02-03,19184.00,19184.00," Contribution ","Programme d�aide � la diffusion en salle",0
2020-2021,P4,"The Princess Cinema Inc",Waterloo,Ontario,Canada,"Theatrical Exhibition Program  The Princess Cinema Inc",0,0,2021-02-12,14695.50,14695.50," Contribution ","Programme d�aide � la diffusion en salle",0
2020-2021,P4,"Wildling Pictures Inc.",Toronto,Ontario,Canada,"Young Werther",English,Comedy,2021-03-02,135254.00,135254.00," Advance ","Production Program",0
2020-2021,P4,"Resource Films Inc.",Toronto,Ontario,Canada,"The King Tide",English,"Science fiction/Fantasy/Tale",2021-03-03,150000.00,150000.00," Advance ","Production Program",0
2020-2021,P4,"Mongrel Media Inc.",Toronto,Ontario,Canada,Falling,English,Drama,2021-03-26,73200.00,73200.00," Advance ","Marketing Program",0
2020-2021,P4,"Amalga Cr�ations M�dias Inc.",Montr�al,Quebec,Canada,Ru,French,Drama,2021-02-04,300000.00,300000.00," Advance ","Production Program",0
2020-2021,P4,"Clear Your Desk Enterprises Ltd.",LISTOWEL,Ontario,Canada,"Theatrical Exhibition Program  Clear Your Desk Enterprises Ltd.",0,0,2021-02-08,10535.50,10535.50," Contribution ","Programme d�aide � la diffusion en salle",0
2020-2021,P4,"Canadian Cinemas Ltd.",Toronto,Ontario,Canada,"Theatrical Exhibition Program  Canadian Cinemas Ltd.",0,0,2021-02-09,10675.50,10675.50," Contribution ","Programme d�aide � la diffusion en salle",0
2020-2021,P4,"Films S�ville Inc. (Les)",Montr�al,Quebec,Canada,"La parfaite victime",French,Documentary,2021-03-29,157020.00,157020.00," Advance ","Marketing Program",0
2020-2021,P4,"La Distributrice de Films",Montr�al,Quebec,Canada,Archipel,French,Documentary,2021-02-24,8700.00,8700.00," Contribution ","International Marketing Program",0
2020-2021,P4,"9219-3010 Qu�bec Inc.",Montr�al,Quebec,Canada,"Arsenault & Fils",French,Drama,2021-02-03,297438.00,297438.00," Advance ","Production Program",0
2020-2021,P4,"9219-3010 Qu�bec Inc.",Montr�al,Quebec,Canada,"Arsenault & Fils",French,Drama,2021-03-30,0.00,297438.00," Advance ","Production Program","Amended Contract Signed 03-Feb-2021"
2020-2021,P4,"9219-3010 Qu�bec Inc.",Montr�al,Quebec,Canada,"Arsenault & Fils",French,Drama,2021-03-30,297438.00,297438.00," Investment ","Production Program","Amended Contract Signed 03-Feb-2021"
2020-2021,P4,"2754-5383 Qu�bec Inc (Cin�ma Alouette)",Saint-Raymond,Quebec,Canada,"Programme d'aide � la diffusion en salle  2754-5383 Qu�bec Inc (Cin�ma Alouette)",0,0,2021-02-08,12088.50,12088.50," Contribution ","Programme d�aide � la diffusion en salle",0
2020-2021,P4,"Cinemas Princesse Inc.","Riviere du Loup",Quebec,Canada,"Programme d'aide � la diffusion en salle  Cinemas Princesse Inc.",0,0,2021-02-05,15989.00,15989.00," Contribution ","Programme d�aide � la diffusion en salle",0
2020-2021,P4,"344476 BC LIMITED dba GEM Theatre","Grand Forks","British Columbia",Canada,"Theatrical Exhibition Program  344476 BC LIMITED dba GEM Theatre",0,0,2021-02-11,10221.00,10221.00," Contribution ","Programme d�aide � la diffusion en salle",0
2020-2021,P4,"Paradise Cinemas Ltd.","Williams Lake","British Columbia",Canada,"Theatrical Exhibition Program  Paradise Cinemas Ltd.",0,0,2021-02-05,10205.50,10205.50," Contribution ","Programme d�aide � la diffusion en salle",0
2020-2021,P4,"Entract Studios Inc.",Montr�al,Quebec,Canada,Niagara,French,Comedy,2021-02-08,62500.00,62500.00," Advance ","Production Program",0
2020-2021,P4,"Landmark Cinemas Holding Ltd.",Calgary,Alberta,Canada,"Theatrical Exhibition Program  Landmark Cinemas of Canada",0,0,2021-02-22,20812.50,20812.50," Contribution ","Programme d�aide � la diffusion en salle",0
2020-2021,P4,"Toronto International Film Festival Inc.",Toronto,Ontario,Canada,"Theatrical Exhibition Program  Toronto International Film Festival Inc.",0,0,2021-02-17,10267.00,10267.00," Contribution ","Programme d�aide � la diffusion en salle",0
2020-2021,P4,"Greenground Productions Inc.",Montr�al,Quebec,Canada,"Hygi�ne Sociale",French,"Romantic Comedy",2021-03-01,19500.00,19500.00," Contribution ","International Marketing Program",0
2020-2021,P4,"Sweet George Films Inc.",Toronto,Ontario,Canada,"Benjamin, Benny, Ben",English,Drama,2021-03-11,1000.00,1000.00," Contribution ","International Marketing Program",0
2020-2021,P4,"Film Chien Blanc Inc.",Montreal,Quebec,Canada,"CHIEN BLANC",French,Drama,2021-02-16,300000.00,300000.00," Advance ","Production Program",0
2020-2021,P4,"Film Chien Blanc Inc.",Montreal,Quebec,Canada,"CHIEN BLANC",French,Drama,2021-03-30,0.00,300000.00," Advance ","Production Program","Amended Contract Signed 16-Feb-2021"
2020-2021,P4,"Film Chien Blanc Inc.",Montreal,Quebec,Canada,"CHIEN BLANC",French,Drama,2021-03-30,300000.00,300000.00," Investment ","Production Program","Amended Contract Signed 16-Feb-2021"
2020-2021,P4,"Cin�ma Le Clap LTV Inc.",Qu�bec,Quebec,Canada,"Programme d'aide � la diffusion en salle  Cin�ma Le Clap LTV Inc.",0,0,2021-03-12,40000.00,40000.00," Contribution ","Programme d�aide � la diffusion en salle",0
2020-2021,P4,"The Book Shelf of Guelph Limited",Guelph,Ontario,Canada,"Theatrical Exhibition Program  The Book Shelf of Guelph Limited",0,0,2021-03-03,11137.50,11137.50," Contribution ","Programme d�aide � la diffusion en salle",0
2020-2021,P4,"9063-5186 Qu�bec Inc. (Cin�ma Laurier)",mont-laurier,Quebec,Canada,"Programme d'aide � la diffusion en salle  9063-5186 Qu�bec Inc. (Cin�ma Laurier)",0,0,2021-02-09,14199.50,14199.50," Contribution ","Programme d�aide � la diffusion en salle",0
2020-2021,P4,"Ville de D�gelis",D�gelis,Quebec,Canada,"Programme d'aide � la diffusion en salle  Cin�ma d�gelis",0,0,2021-03-29,10792.00,10792.00," Contribution ","Programme d�aide � la diffusion en salle",0
2020-2021,P4,"Academy Of Canadian Cinema And Television - Acad�mie Canadienne du Cin�ma et de la T�l�vision",Toronto,Ontario,Canada,"Canadian Screen Awards 2021 Virtual Presentations",0,0,2021-03-15,165000.00,165000.00," Contribution ","Promotion Program",0
2020-2021,P4,"Pacific Cinematheque Pacifique",Vancouver,"British Columbia",Canada,"Theatrical Exhibition Program  Pacific Cinematheque Pacifique",0,0,2021-03-25,10333.50,10333.50," Contribution ","Programme d�aide � la diffusion en salle",0
2020-2021,P4,"Coop�rative de solidarit� socioculturelle de la Matap�dia",Amqui,Quebec,Canada,"Programme d'aide � la diffusion en salle  Coop�rative de solidarit� socioculturelle de la Matap�dia",0,0,2021-02-23,10735.50,10735.50," Contribution ","Programme d�aide � la diffusion en salle",0
2020-2021,P4,"1976 Productions Inc.",Montr�al,Quebec,Canada,"Le Coyote",French,Drama,2021-02-08,125000.00,125000.00," Advance ","Production Program",0
2020-2021,P4,"9359-1238 Quebec Inc.","La Sarre",Quebec,Canada,"Programme d'aide � la diffusion en salle  9359-1238 Quebec Inc.",0,0,2021-02-15,12623.50,12623.50," Contribution ","Programme d�aide � la diffusion en salle",0
2020-2021,P4,"Night Raiders East Inc.",Toronto,Ontario,Canada,"Night Raiders",English,"Science fiction/Fantasy/Tale",2021-03-08,19500.00,19500.00," Contribution ","International Marketing Program",0
2020-2021,P4,"GAME THEORY FILMS INC.",Toronto,Ontario,Canada,"Little Orphans",English,Drama,2021-03-23,15000.00,15000.00," Advance ","Marketing Program",0
2020-2021,P4,"A71 Releasing Inc.",Toronto,Ontario,Canada,"The Marijuana Conspiracy",English,Drama,2021-03-25,36000.00,36000.00," Advance ","Marketing Program",0
2020-2021,P4,"TimeLapse Pictures Productions Inc.",Toronto,Ontario,Canada,Tabija,English,Drama,2021-03-09,15500.00,15500.00," Contribution ","International Marketing Program",0
2020-2021,P4,"SPH�RE M�DIA DISTRIBUTION INC.",Montr�al,Quebec,Canada,BEANS,English,"Historical Drama",2021-03-12,7200.00,7200.00," Contribution ","International Marketing Program",0
2020-2021,P4,"Aircraft Pictures Limited",Toronto,Ontario,Canada,Youngblood,English,Drama,2021-03-19,135258.00,135258.00," Advance ","Production Program",0
2020-2021,P4,"G.P.A. Films Inc.",Longueuil,Quebec,Canada,"Nulle trace",French,Drama,2021-03-23,3200.00,3200.00," Contribution ","International Marketing Program",0
2020-2021,P4,"GAME THEORY FILMS INC.",Toronto,Ontario,Canada,"Drifting Snow",English,Drama,2021-03-24,15927.00,15927.00," Advance ","Marketing Program",0
2020-2021,P4,"Voyelles Films Productions inc.",Montr�al,Quebec,Canada,"Sin La Habana",English,Drama,2021-02-25,4700.00,4700.00," Contribution ","International Marketing Program",0
2020-2021,P4,"MK2 Mile End Inc.",Montr�al,Quebec,Canada,"The Wolf and the Lion",English,Drama,2021-03-25,550185.00,550185.00," Advance ","Marketing Program",0
2020-2021,P4,"Sher Vancouver LGBTQ Friends Society",Delta,"British Columbia",Canada,"Emergence: Out of the Shadows",English,Documentary,2021-03-09,24375.00,24375.00," Advance ","Marketing Program",0
2020-2021,P4,"Axia Films inc.",Montr�al,Quebec,Canada,"La Nuit des Rois",French,Drama,2021-03-04,53244.00,53244.00," Advance ","Marketing Program",0
2020-2021,P4,"Level Film Inc.",Toronto,Ontario,Canada,"The Middle Man",English,Comedy,2021-03-18,41291.25,41291.25," Advance ","Marketing Program",0
2020-2021,P4,"Level Film Inc.",Toronto,Ontario,Canada,"Akilla's Escape",English,Drama,2021-03-10,62535.00,62535.00," Advance ","Marketing Program",0
2020-2021,P4,"Level Film Inc.",Toronto,Ontario,Canada,"Bone Cage",English,Drama,2021-03-16,28751.25,28751.25," Advance ","Marketing Program",0
2020-2021,P4,"Level Film Inc.",Toronto,Ontario,Canada,"Cosmic Dawn",English,"Science fiction/Fantasy/Tale",2021-03-16,23265.00,23265.00," Advance ","Marketing Program",0
2020-2021,P4,"Productions Welcome Aboard",Montr�al,Quebec,Canada,"Festival Courts d'un soir",0,0,2021-03-25,5000.00,5000.00," Contribution ","Promotion Program",0
2020-2021,P4,"Lunenburg Doc Fest Association",Lunenburg,"Nova Scotia",Canada,"Lunenburg Doc Fest",0,0,2021-03-30,5000.00,5000.00," Contribution ","Promotion Program",0
2020-2021,P4,Filministes,Montreal,Quebec,Canada,"Festival Filministes",0,0,2021-03-30,5000.00,5000.00," Contribution ","Promotion Program",0
2020-2021,P4,"Diffusions gaies et lesbiennes du Qu�bec",Montr�al,Quebec,Canada,"image+nation festival courts Queer short film festival",0,0,2021-03-23,5000.00,5000.00," Contribution ","Promotion Program",0
2020-2021,P4,"Canada China Art-Tech",Montreal,Quebec,Canada,"Canada China International Film Festival",0,0,2021-03-24,5000.00,5000.00," Contribution ","Promotion Program",0
2020-2021,P4,"Weengushk International Film Festival",M'Chigeeng,Ontario,Canada,"Weengushk International Film Festival",0,0,2021-03-26,5000.00,5000.00," Contribution ","Promotion Program",0
2020-2021,P4,"Edmonton Movie Club","Sherwood Park",Alberta,Canada,"India Film Festival of Alberta",0,0,2021-03-22,5000.00,5000.00," Contribution ","Promotion Program",0
2020-2021,P4,"Les Perc�ides, Festival international de cin�ma et d'art de Perc�",Perce,Quebec,Canada,"Festival international de Cin�ma et d'art de Perc�",0,0,2021-03-22,5000.00,5000.00," Contribution ","Promotion Program",0
2020-2021,P4,"Festival International de Musique POP Montr�al",Montr�al,Quebec,Canada,"Film POP 2021",0,0,2021-03-17,5000.00,5000.00," Contribution ","Promotion Program",0
2020-2021,P4,"Regina International Film Festival & Awards Foundation Inc.",Regina,Saskatchewan,Canada,"Regina International Film Festival and awards",0,0,2021-03-30,5000.00,5000.00," Contribution ","Promotion Program",0
2020-2021,P4,"Vancouver Latin American Film Festival",Vancouver,"British Columbia",Canada,"Vancouver Latin American Film Festival",0,0,2021-03-30,5000.00,5000.00," Contribution ","Promotion Program",0
2020-2021,P4,"Rendez-vous culturels de Saint-Casimir",Saint-Casimir,Quebec,Canada,"Festival de films pour l'environnement",0,0,2021-03-23,5000.00,5000.00," Contribution ","Promotion Program",0
2020-2021,P4,"Le Festival du Film de Stop Motion de Montr�al",Lachine,Quebec,Canada,"Festival Stop Motion Montr�al",0,0,2021-03-30,5000.00,5000.00," Contribution ","Promotion Program",0
2020-2021,P4,"DOCTalks Festival & Symposium Inc.",Fredericton,"New Brunswick",Canada,"DOCTalks Festival & Symposium",0,0,2021-03-22,5000.00,5000.00," Contribution ","Promotion Program",0
2020-2021,P4,"TORONTO INTERNATIONAL NOLLYWOOD FILM FESTIVAL","North York",Ontario,Canada,"Toronto International Nollywood Film Festival",0,0,2021-03-23,5000.00,5000.00," Contribution ","Promotion Program",0
2020-2021,P4,"Breakthroughs Film Festival",Toronto,Ontario,Canada,"Breakthroughs Film Festival",0,0,2021-03-25,5000.00,5000.00," Contribution ","Promotion Program",0
2020-2021,P4,"Toronto Outdoor Picture Show",Toronto,Ontario,Canada,"Toronto Outdoor Picture Show",0,0,2021-03-17,5000.00,5000.00," Contribution ","Promotion Program",0
2020-2021,P4,"Copperheart Entertainment Inc.",Toronto,Ontario,Canada,"NIGHT OF THE ZOOmbies",English,Comedy,2021-03-17,150000.00,150000.00," Advance ","Production Program",0
2020-2021,P4,"Chilliwack Film Society",Chilliwack,"British Columbia",Canada,"Abbotsford Film Festival",0,0,2021-03-22,5000.00,5000.00," Contribution ","Promotion Program",0
2020-2021,P4,"Future of Film Showcase",Toronto,Ontario,Canada,"Future of Film Showcase",0,0,2021-03-19,5000.00,5000.00," Contribution ","Promotion Program",0
2020-2021,P4,"Fifth Ground Entertainment Inc.",Paris,Ontario,Canada,"Lakeshorts International Short Film Festival",0,0,2021-03-18,5000.00,5000.00," Contribution ","Promotion Program",0
2020-2021,P4,"Mirror Mountain Film Festival",Ottawa,Ontario,Canada,"MMFF 2021 online festival",0,0,2021-03-19,5000.00,5000.00," Contribution ","Promotion Program",0
2020-2021,P4,"ATOMIC AUTUMN PRODUCTIONS INC.",Montr�al,Quebec,Canada,"Best Sellers",English,Comedy,2021-03-17,19500.00,19500.00," Contribution ","International Marketing Program",0
2020-2021,P4,"Canadian Multicultural Heritage Council",Brampton,Ontario,Canada,"IFFSA Toronto 2021",0,0,2021-03-26,5000.00,5000.00," Contribution ","Promotion Program",0
2020-2021,P4,"Dawson City Arts Society","Dawson City",Yukon,Canada,"Dawson City International Short Film Festival",0,0,2021-03-30,5000.00,5000.00," Contribution ","Promotion Program",0
2020-2021,P4,"Italian Contemporary Film Festival",Toronto,Ontario,Canada,"ICFF Film Festival",0,0,2021-03-25,5000.00,5000.00," Contribution ","Promotion Program",0
2020-2021,P4,"Grand River Film Festival",Cambridge,Ontario,Canada,"Grand River Film Festival",0,0,2021-03-25,5000.00,5000.00," Contribution ","Promotion Program",0
2020-2021,P4,"Vancouver International Mountain Film Festival Society","North Vancouver","British Columbia",Canada,"VIMFF Summer Festival",0,0,2021-03-30,5000.00,5000.00," Contribution ","Promotion Program",0
2020-2021,P4,"Cine-Vic Society Of Independent Filmmakers",Victoria,"British Columbia",Canada,"Short Circuit Pacific Rim Film Festival",0,0,2021-03-29,5000.00,5000.00," Contribution ","Promotion Program",0
2020-2021,P4,"The Vancouver Out On Screen Film and Video Society",Vancouver,"British Columbia",Canada,"The Vancouver Queer Film Festival",0,0,2021-03-26,5000.00,5000.00," Contribution ","Promotion Program",0
2020-2021,P4,"6695443 Manitoba Inc",Winnipeg,Manitoba,Canada,"Ste. Anne",French,Drama,2021-03-19,11000.00,11000.00," Contribution ","International Marketing Program",0
2020-2021,P4,"Miles Nadal Jewish Community Centre",Toronto,Ontario,Canada,"Reelabilities Film Festival Toronto",0,0,2021-03-23,5000.00,5000.00," Contribution ","Promotion Program",0
2020-2021,P4,"Festival Juste Pour Rire",Montreal,Quebec,Canada,"Just For Laughs - Eat My Shorts",0,0,2021-03-26,5000.00,5000.00," Contribution ","Promotion Program",0
2020-2021,P4,"Nickel Independent Film Festival, Inc.","St. John's",Newfoundland/Labrador,Canada,"Nickel Independent Film Festival",0,0,2021-03-26,5000.00,5000.00," Contribution ","Promotion Program",0
2020-2021,P4,"Films Rumi inc. (Les)",Montr�al,Quebec,Canada,"Le Ventre de Bassima",French,Drama,2021-03-02,50000.00,50000.00," Advance ","Production Program",0
2020-2021,P4,"Aqute Media Inc.",Toronto,Ontario,Canada,"The Retreat",English,Horror,2021-03-25,37785.00,37785.00," Advance ","Marketing Program",0
2020-2021,P4,"Short Stop Pictures XIV Ltd.",Halifax,"Nova Scotia",Canada,"Short Film Face Off",0,0,2021-03-16,37500.00,37500.00," Contribution ","Promotion Program",0
2020-2021,P4,"Charles Taylor Theatre & Media Arts Association",Dartmouth,"Nova Scotia",Canada,"Mentorship Film Crew Training Program",0,0,2021-03-19,22000.00,22000.00," Contribution ","Promotion Program",0
2020-2021,P4,"Western Arctic Moving Pictures",Yellowknife,"North West Territories",Canada,"NWT PMA Film Apprenticeship Program",0,0,2021-03-16,14000.00,14000.00," Contribution ","Promotion Program",0
2020-2021,P4,"Serendipity Point Films Inc.",Toronto,Ontario,Canada,"Crimes of the Future",English,Drama,2021-03-25,150000.00,150000.00," Advance ","Production Program",0
2020-2021,P4,"Wire Walker Studios Canada",Lachine,Quebec,Canada,"Peace by Chocolate",English,Drama,2021-03-12,4700.00,4700.00," Contribution ","International Marketing Program",0
2020-2021,P4,"Canadian Multicultural Heritage Council",Brampton,Ontario,Canada,"IFFSA Talent Fund - Bright Lights Program 2021",0,0,2021-03-26,25000.00,25000.00," Contribution ","Promotion Program",0
2020-2021,P4,"Diffusions gaies et lesbiennes du Qu�bec",Montr�al,Quebec,Canada,"New Diverse Voices in Canadian Queer Storytelling",0,0,2021-03-23,25000.00,25000.00," Contribution ","Promotion Program",0
2020-2021,P4,"Newfoundland Independent Filmmakers Co-Operative","St. John's",Newfoundland/Labrador,Canada,"Picture Start",0,0,2021-03-16,44000.00,44000.00," Contribution ","Promotion Program",0
2020-2021,P4,"Blood in the Snow Canadian Film Festival",Toronto,Ontario,Canada,"BITS 2021 Horror Development Lab",0,0,2021-03-23,25000.00,25000.00," Contribution ","Promotion Program",0
2020-2021,P4,"St. John's International Women's Film Festival, Inc.","St. John's",Newfoundland/Labrador,Canada,"FRAMED First Light",0,0,2021-03-19,25000.00,25000.00," Contribution ","Promotion Program",0
2020-2021,P4,"SMI Film Society",Vancouver,"British Columbia",Canada,"Impact Mentorship - Doc Development for Diverse Creators",0,0,2021-03-22,15000.00,15000.00," Contribution ","Promotion Program",0
2020-2021,P4,"Vues d'Afrique",Montr�al,Quebec,Canada,"Formation producteurs destin�e aux professionnels �mergents",0,0,2021-03-23,15000.00,15000.00," Contribution ","Promotion Program",0
2020-2021,P4,"Black Women Film",Toronto,Ontario,Canada,"Symposium: M\othering in the Industry",0,0,2021-03-26,25000.00,25000.00," Contribution ","Promotion Program",0
2020-2021,P4,"Building a Legacy in Acting, Cinema & Knowledge (B.L.A.C.K.) Canada",Toronto,Ontario,Canada,"Write Your Legacy",0,0,2021-03-26,50000.00,50000.00," Contribution ","Promotion Program",0
2020-2021,P4,"Reel to Real: A Celebration Of Moving Images For Youth Society",Vancouver,"British Columbia",Canada,"Digital Storytelling Initiative",0,0,2021-03-22,10000.00,10000.00," Contribution ","Promotion Program",0
2020-2021,P4,"Women In Film and Television - Atlantic",Halifax,"Nova Scotia",Canada,"2021 WIFT-AT Mentor Match Program",0,0,2021-03-19,10000.00,10000.00," Contribution ","Promotion Program",0
2020-2021,P4,"Vancouver Asian Film Festival Society",Vancouver,"British Columbia",Canada,"Mighty Asian Moviemaking Marathon",0,0,2021-03-16,25000.00,25000.00," Contribution ","Promotion Program",0
2020-2021,P4,"Banff Television Festival Foundation",Calgary,Alberta,Canada,"Banff World Media Festival",0,0,2021-03-24,85000.00,85000.00," Contribution ","Promotion Program",0
2020-2021,P4,"Reel to Real: A Celebration Of Moving Images For Youth Society",Vancouver,"British Columbia",Canada,"The Our World Legacy Project",0,0,2021-03-18,25000.00,25000.00," Contribution ","Promotion Program",0
2020-2021,P4,"White Bear Films Inc.",Winnipeg,Manitoba,Canada,"Once Were Warriors",English,Drama,2021-03-17,25000.00,25000.00," Advance ","Production Program",0
2020-2021,P4,"julijette inc.",Winnipeg,Manitoba,Canada,Polarized,English,Drama,2021-03-18,75000.00,75000.00," Advance ","Production Program",0
2020-2021,P4,"Rhombus Media Inc.",Toronto,Ontario,Canada,"Mother, Mother",English,Drama,2021-03-21,119840.00,119840.00," Advance ","Production Program",0
2020-2021,P4,"Films Outsiders Inc. (Les)",Verdun,Quebec,Canada,"Space Cadet",English,Drama,2021-03-17,150000.00,150000.00," Advance ","Production Program",0
2020-2021,P4,"C&Y Cinema Ltd.",Toronto,Ontario,Canada,"Every Day's Like This",English,Drama,2021-03-18,1000.00,1000.00," Contribution ","International Marketing Program",0
2020-2021,P4,"10091460 Manitoba Ltd.",Winnipeg,Manitoba,Canada,"Strong Son",English,Drama,2021-03-26,1000.00,1000.00," Contribution ","International Marketing Program",0
2020-2021,P4,"9389-2610 Qu�bec Inc",St-Adolphe-d'Howard,Quebec,Canada,ENDOMIC,English,Documentary,2021-03-22,1000.00,1000.00," Contribution ","International Marketing Program",0
2020-2021,P4,"Screen Siren Pictures Inc.",Vancouver,"British Columbia",Canada,"The Ringmen",English,Drama,2021-03-19,150000.00,150000.00," Advance ","Production Program",0
